{"text_format":"1","workbook":"xlsx","n_sheets":23,"sheets":["Cover Page","Contents","Facility Info","Operational Data","Operational Summary","Perf. Form 1","Energy Form 1","Permit Compliance","Improvements","Residue Quality ","Public Liasion","CO2 N2O","Water","Air (periodic)","Air (CEMS)","HCl","SO2","NOx","TOC","Particulates","CO 0.5 hourly","CO 95% 10 min","NH3"],"not_rendered":{"charts":8,"images":3,"macros":1,"external_links":1,"defined_names":23,"comments":0,"pivot_tables":0},"unopened":[],"bounds":{"document_bytes":16777216,"sheet_cells":100000,"rows_first":2000,"rows_last":500,"rows_between":2000,"halvings":0,"cell_chars":16384,"cell_head_chars":4096},"cells_cut":0,"cells_raw":0,"read":"whole","date_system":"1900"}

{"sheet":"Cover Page","index":0,"n_rows":53,"n_cols":14,"rows_kept":53,"cut":false,"hidden":false,"merged":[[48,2,48,3],[48,6,48,8],[52,2,52,3],[36,1,36,8],[40,2,40,8],[42,2,42,4],[44,2,44,4],[46,2,46,3],[46,6,46,8],[13,13,18,15],[34,1,34,8],[0,3,5,6],[7,1,23,8],[28,1,28,8],[30,1,30,8],[32,1,32,8]]}
[null,null,null,"Add company logo"]
[null,null,null,null,null,null,null,null,null,null,null,null,null,"Version 23.4a (for incinerators) - 15/11/2023"]
[]
[null,null,null,null,null,null,null,null,null,null,null,null,null,"Note that there is another version of this template available for co-incinerators"]
[]
[]
[]
[null,"Add photo"]
[]
[]
[]
[]
[null,null,null,null,null,null,null,null,null,null,null,null,null,"Notes:"]
[null,null,null,null,null,null,null,null,null,null,null,null,null,"This template may require adjustments by individual operators to meet specific reporting requirements as defined in the site Permit(s)"]
[]
[]
[]
[]
[]
[]
[]
[]
[]
[]
[]
[]
[]
[]
[null,"Annual Performance Report 2023"]
[]
[null,"Permit EPR/HP3341QV/V002"]
[]
[null,"Stoke Energy from Waste "]
[]
[null,"NA"]
[]
[null,"North Midlands Operations Ltd"]
[]
[null,"Year:",2023]
[]
[null,"Address:","Campbell Road Sideway\nStoke-on-Trent Staffordshire\nST4 4DX"]
[]
[null,"Tel: ","01782 412131"]
[]
[null,"Email: ","kate.harrop@cobaltenergy.co.uk"]
[]
[null,"Prepared by:","A. Whittingham & C. Ballard",null,null,"Position:","Q&E Coordinators"]
[]
[null,"Approved by:","K. Harrop",null,null,"Position:","Group Q&E Manager"]
[]
[null,"Version:",1]
[]
[null,"Issue Date:","2024-01-31"]

{"sheet":"Contents","index":1,"n_rows":45,"n_cols":11,"rows_kept":45,"cut":false,"hidden":false,"merged":[[44,0,47,9],[37,1,37,6],[38,1,38,6],[39,1,39,6],[40,1,40,6],[41,1,41,6],[42,1,42,6],[36,1,36,6],[22,1,22,6],[23,1,23,6],[24,1,24,6],[27,1,27,6],[28,1,28,6],[29,1,29,6],[30,1,30,6],[31,1,31,6],[32,1,32,6],[35,1,35,6],[21,1,21,6],[9,1,9,6],[10,1,10,6],[11,1,11,6],[13,1,13,6],[14,1,14,6],[15,1,15,6],[16,1,16,6],[17,1,17,6],[18,1,18,6],[19,1,19,6],[20,1,20,6],[12,1,12,6],[4,10,7,14],[8,1,8,6],[3,1,3,6],[4,1,4,6],[5,1,5,6],[6,1,6,6],[7,1,7,6]]}
[{"$f":"+'Cover Page'!$B$29","v":"Annual Performance Report 2023"},null,null,null,{"$f":"+'Cover Page'!$B$33","v":"Stoke Energy from Waste "}]
[]
["Contents",null,null,null,null,null,null,null,null,null,"Notes:"]
["Section","Subject",null,null,null,null,null,"Page ",null,null,"Section references and Page nos. to be inserted"]
[null,"Facility Information",null,null,null,null,null,4,null,null,"Sections and Subjects may require adjustment by individual operators to meet specific reporting requirements as defined in the sites Permit(s)"]
[null,"Operational Data",null,null,null,null,null,5]
[null,"Operational Summary",null,null,null,null,null,9]
[null,"Performance Form 1",null,null,null,null,null,10]
[null,"Energy Form 1",null,null,null,null,null,12]
[null,"Permit Compliance",null,null,null,null,null,13]
[null,"Improvements",null,null,null,null,null,14]
[null,"Residue Quality ",null,null,null,null,null,15]
[null,"Public and Stakeholder Liaison",null,null,null,null,null,17]
[null,"Carbon Dioxide & Nitrous Oxide Emissions",null,null,null,null,null,18]
[null,"Emissions to Water",null,null,null,null,null,20]
[null,"Emissions to Air (periodically monitored)",null,null,null,null,null,21]
[null,"Emissions to Air (continuously monitored)",null,null,null,null,null,23]
[null,"Hydrogen Chloride emissions",null,null,null,null,null,25]
[null,"Sulphur Dioxide emsissions",null,null,null,null,null,26]
[null,"Oxides of Nitrogen emissions",null,null,null,null,null,27]
[null,"Total Organic Carbon emissions",null,null,null,null,null,28]
[null,"Particulate Matter emissions",null,null,null,null,null,29]
[null,"Carbon Monoxide emissions (half-hourly)",null,null,null,null,null,30]
[null,"Carbon Monoxide emissions (10-min avg)",null,null,null,null,null,32]
[]
[]
["Version Control"]
["Section","Information",null,null,null,null,null,"Date"]
[1,"Original",null,null,null,null,null,"2024-01-31"]
[]
[]
[]
[]
[]
["Distribution"]
["Copy","Name, Role",null,null,null,null,null,"No."]
[]
[]
[]
[]
[]
[]
[]
[]
["This report is required under the Industrial Emissions Directive’s Article 55(2) requirements on reporting and public information on waste incineration plants and co-incineration plants, which require the operator to produce an annual report on the functioning and monitoring of the plant and make it available to the public. "]

{"sheet":"Facility Info","index":2,"n_rows":22,"n_cols":11,"rows_kept":22,"cut":false,"hidden":false,"merged":[[4,0,17,8],[21,0,53,8],[4,10,13,13],[21,10,30,13]]}
[{"$f":"+'Cover Page'!$B$29","v":"Annual Performance Report 2023"},null,null,null,{"$f":"+'Cover Page'!$B$33","v":"Stoke Energy from Waste "}]
[]
["Plant Description and Design",null,null,null,null,null,null,null,null,null,"Notes:"]
[]
["The Stoke Energy from Waste Facility utilises municipal waste to recover energy in the form of electricity and steam for export to the local grid. The facility processes approximately 210,000 tpa of waste in two combustion streams (combined capacity of 24 tonnes per hour) which operate using moving grate furnace systems.  The heat produced during combustion is converted to electrical energy by generating steam in high-pressure boilers and expanding the steam through a steam turbine.  When operating at full load, the plant will typically generate around 14.2 MW of electricity and, after satisfying its own power needs, exports approximately 12 MW of electricity to the grid. \n\nThe installation provides a sustainable method of waste disposal and recovery for the whole of the North Staffordshire conurbation, comprising the districts of Stoke-on- Trent, Newcastle under Lyme, Staffordshire Moorlands the northern area of Stafford and limited quantities from East Staffordshire, Leicestershire and Derbyshire, which would usually be taken to landfill.\n\nThe process includes waste reception and storage, combustion, waste heat boilers, abatement of flue gases and the onsite storage of residues produced, namely IBA and APCr.\n\nThe plant is operated in accordance with its Environmental Management System which is designed to meet the requirements of ISO14001:2015.  ",null,null,null,null,null,null,null,null,null,"Include summary of plant design, design capacity, no. of combustion lines, electrical and heat capacity and any other general information that descibes the facility, its location and purpose "]
[]
[]
[]
[]
[]
[]
[]
[]
[]
[]
[]
[]
[]
[]
["Summary of Operational Processes and Procedures"]
[]
["The Plant is regulated under the terms of a Permit issued by the Environment Agency (HP3341QV) which contains conditions to ensure that the requirements of the Industrial Emissions Directive are incorporated and shall be met. \nNorth Midlands Operations Ltd operates all of its sites under an Integrated Management System certified to ISO 14001:2015 (environmental management), ISO 9001:2015 (quality management), and ISO 45001:2018 (health and safety management).  \nIn terms of plant operation, the incineration processes have been designed against the background of a detailed assessment of the prevailing environmental conditions at the site location, and are based upon the Best Available Technology (BAT) as detailed both in the original Authorisation application and the application for the Permit issued under the Pollution Prevention and Control (England and Wales) Regulations.  These include, but are not limited to, the following:\n• Well proven process plant developed specifically for incineration of municipal solid wastes\n• Efficient, comprehensive process control and monitoring systems to ensure optimum conditions for complete combustion of the wastes and to minimise emissions from the processes\n• Operations confined within buildings under slight negative pressure in order to contain and minimise emissions such as dust and odour\n• Qualified and experienced operating and maintenance personnel to implement procedures to ensure that the required high standards are maintained. Operating and Maintenance Procedures are established according to an internationally recognised system of quality assurance\n• Multi-stage high efficiency flue gas cleaning systems comprising deNOx Selective Non-Catalytic Reduction (SNCR) for the removal of oxides of nitrogen, activated carbon and lime semi-dry acid gas scrubbing for controlling acid gas, dioxins/furans and mercury emissions\n• Final stage flue gas abatement for particulate materials using fabric filtration\n• Residues from the combustion process and from the flue gas cleaning system disposed of by approved means, maximising recycling wherever possible\n• Waste water from the process is neutralised and recycled as far as is practicable to minimise the quantities released to sewers\n• Provision of bunds or double skinned vessels for storage of fuel and chemicals in order to prevent accidental and inappropriate discharge to the public sewers and watercourse\nThe site is complies with the new Waste Incineration BAT Conclusions, which came into effect on 03.12.2023.",null,null,null,null,null,null,null,null,null,"Include summary of key processes and procedures such as (but not limited to); waste reception, control rooms, grate, bed and bolier, energy & heat  generation, cooling systems, residue management, emission controls, health and safety systems, maintenance"]

{"sheet":"Operational Data","index":3,"n_rows":65,"n_cols":10,"rows_kept":65,"cut":false,"hidden":false,"merged":[[5,9,7,9],[52,0,56,0],[33,1,38,1],[3,1,3,2],[7,1,19,1],[23,1,26,1],[28,1,29,1],[9,9,20,9],[21,9,25,9]]}
[{"$f":"+'Cover Page'!$B$29","v":"Annual Performance Report 2023"},null,null,null,{"$f":"+'Cover Page'!$B$33","v":"Stoke Energy from Waste "}]
[]
["Operational Data"]
["Plant Size",210000,null,"tonnes pa",null,"MWth",14,"MWe",null,"Notes:"]
["No. of combustion lines",2,null,"No. of Turbines:",null,1,null,null,null,"* - RDF to include SRF "]
[null,null,null,null,null,null,null,null,null,"** - Combusted tonnage = tonnes delivered in period + (tonnes in bunker at start of period – tonnes in bunker at end of period), or equivalent calculation depending on plant type"]
["Waste types received","Unit","Q1","Q2","Q3","Q4","Year Total","%"]
["Household / Local Authority","tonnes",45293,38941.839999999997,42854,44860,{"$f":"SUM(C8:F8)","v":171948.84},{"$f":"IF(G8>0,G8/$G$18,\"-\")","v":0.93461839564264304}]
["Commercial & Industrial ",null,1585,1346,1197,2528,{"$f":"SUM(C9:F9)","v":6656},3.6178319326826705E-2,null,"*** - CHP plants only"]
["Hazardous ",null,null,null,null,null,0,"-",null,"**** Availability Definition: 'the availability of a line is to be calculated by the number of hours the line reported Continuously Monitored emission levels to the Regulator through the calendar year divided by the total number of hours in that year. \n\nThe overall plant availability is calculated as the Mean of all lines in the plant. For clarity this includes periods of abnormal operation.'  \n\nRationale: The primary function of an Energy from Waste facility is the disposal of waste. It follows therefore that the availability of a plant is determined by the period of time a facility spends undertaking this activity."]
["Clinical",null,null,null,null,null,0,"-"]
["Waste wood (biomass) ",null,null,null,null,null,0,"-"]
["Refuse Derived Fuel * - H'hold/LA",null,1521.13,2123.16,1529.7,198.76,{"$f":"SUM(C13:F13)","v":5372.75},2.9203285030530074E-2]
["Refuse Derived Fuel *  - C&I",null,null,null,null,null,0,"-"]
["Other [Please specify]",null,null,null,null,null,0,"-"]
["Other [Please specify]",null,null,null,null,null,0,"-"]
["Other [Please specify]",null,null,null,null,null,0,"-"]
["Total waste received",null,{"$f":"SUM(C8:C17)","v":48399.13},{"$f":"SUM(D8:D17)","v":42411},{"$f":"SUM(E8:E17)","v":45580.7},{"$f":"SUM(F8:F17)","v":47586.76},183977.59000000003]
["Rejected Waste ",null,null,null,null,null,{"$f":"SUM(C19:F19)","v":0},{"$f":"IF(G19>0,G19/$G$18,\"-\")","v":"-"}]
["Unprocessed waste transferred out",null,null,469,null,null,{"$f":"SUM(C20:F20)","v":469},{"$f":"IF(G20>0,G20/$G$18,\"-\")","v":2.549223522277903E-3}]
["Total waste combusted **",null,48521,41107,47098,48316,{"$f":"SUM(C21:F21)","v":185042}]
[null,null,null,null,null,null,null,null,null,"Password for protected cells\nA password has been set to prevent accidental  editing of cells with formulae. \nIf you still need to make an edit for some reason then the password = 1234"]
["Energy Usage / Export","Unit","Q1","Q2","Q3","Q4","Year Total","KWh/te"]
["Power Generated","MWh",24285,18589,24049,26086,{"$f":"SUM(C24:F24)","v":93009},{"$f":"IF(G24>0,G24*1000/$G$21,\"-\")","v":502.63723911328236}]
["Power Exported",null,20740,15284.37,20707.439999999999,22624.82,{"$f":"SUM(C25:F25)","v":79356.63},{"$f":"IF(G25>0,G25*1000/$G$21,\"-\")","v":428.85739453745634}]
["Power Used on site",null,3545,3304,3341,3462,{"$f":"SUM(C26:F26)","v":13652},{"$f":"IF(G26>0,G26*1000/$G$21,\"-\")","v":73.777845029777026}]
["Power Imported",null,304,517,34.67,0.63500000000000001,856.30499999999995,{"$f":"IF(G27>0,G27*1000/$G$21,\"-\")","v":4.6276250797116329}]
["Parasitic Load","%",{"$f":"IF(C24>0,1-C25/(C24+C27),\"-\")","v":0.15653340924803771},{"$f":"IF(D24>0,1-D25/(D24+D27),\"-\")","v":0.20002250601905158},{"$f":"IF(E24>0,1-E25/(E24+E27),\"-\")","v":0.14018752125402811},{"$f":"IF(F24>0,1-F25/(F24+F27),\"-\")","v":0.13270454391683706},{"$f":"IF(G24>0,1-G25/(G24+G27),\"-\")","v":0.15456909238189753}]
["Thermal Energy Produced ***","MWh",null,null,null,null,{"$f":"SUM(C29:F29)","v":0},{"$f":"IF(G29>0,G29*1000/$G$21,\"-\")","v":"-"}]
["Thermal Energy Exported ***",null,null,null,null,null,0,{"$f":"IF(G30>0,G30*1000/$G$21,\"-\")","v":"-"}]
["R1 value (if applicable)","R1"]
[]
["Waste Disposal & Recovery","Unit","Q1","Q2","Q3","Q4","Year Total","% inputs"]
["APC Residues - produced","tonnes",1629,1345,1276,1707,{"$f":"SUM(C34:F34)","v":5957},{"$f":"IF(G34>0,G34/$G$21,\"-\")","v":3.219269138898196E-2}]
["IBA - produced",null,8565,7777,8147,8289,32778,{"$f":"IF(G35>0,G35/$G$21,\"-\")","v":0.17713816322780773}]
["Metals recycling",null,916,765,694,869,{"$f":"SUM(C36:F36)","v":3244},1.7531155089114903E-2]
["Other",null,0,0,0,0,{"$f":"SUM(C37:F37)","v":0},"-"]
["Other",null,0,0,0,0,0,"-"]
["Other",null,0,0,0,0,0,"-"]
[]
["Raw Material Usage","Unit","Q1","Q2","Q3","Q4","Year Total","kg or Ltr /te"]
["Mains Water","ltrs",7665000,8193000,9170000,9239000,{"$f":"SUM(C42:F42)","v":34267000},{"$f":"IF(G42>0,G42/$G$21,\"-\")","v":185.18498503042554}]
["Other Water","ltrs",10599000,10181000,12148000,16187000,49115000,{"$f":"IF(G43>0,G43/$G$21,\"-\")","v":265.42622755914874}]
["Ammonia","kgs",null,null,null,null,0,"-"]
["Urea","kgs",68000,69000,87000,93000,{"$f":"SUM(C45:F45)","v":317000},1.7131245879313886]
["Activated Carbon","kgs",7000,5000,4000,8000,24000,0.12970028425978966]
["Lime / hydrated lime","kgs",488000,475000,431000,615000,2009000,10.856994628246561]
["Fuel oil","ltrs",63170,63702,72750,54933,254555,1.3756606608229482]
["Gas","cuf",null,null,null,null,0]
["Other",null,null,null,null,null,0]
[]
["Summary ","Line/Unit","Q1","Q2","Q3","Q4","Year Total",null,"Hrs in year "]
["Availability of waste combustion by line, hrs ****",{"$f":"+B5","v":2},1957,1972,1739.63,2157.52,{"$f":"SUM(C53:F53)","v":7826.15},{"$f":"+G53/$I$53","v":0.89339611872146119},8760]
[null,2,1966.65,1457.03,2190.2800000000002,2009.7,7623.6600000000008,{"$f":"+G54/$I$53","v":0.87028082191780831}]
[null,3,null,null,null,null,0,0]
[null,4,null,null,null,null,0,0]
[null,5,null,null,null,null,{"$f":"SUM(C57:F57)","v":0},0]
["Overall Availability, mean avg. of all lines, hrs",null,null,null,null,null,{"$f":"AVERAGE(G53:G57)","v":3089.9620000000004},0.35273538812785393]
["Hours of turbine operations, hrs",1,1927.31,1602.6,2184.12,2209,7923.03,0.90445547945205473]
["Hours of turbine operations, hrs",2,null,null,null,null,0,0]
["Hours of heat / steam export",null,null,null,null,null,0,{"$f":"IF(B61>0,G60/I53,\"n/a\")","v":"n/a"}]
["Net Calorific Value of waste","MJ/kg",8.3699999999999992,7.36,8.68,8.6999999999999993,7.6349999999999998]
["Abnormal Events","qty.",null,1,2,null,3,{"$f":"IF(G63>0,\"yes\",\"no\")","v":"yes"}]
["Abnormal operation","hours",null,0.5,1,null,1.5,{"$f":"+(G64)/I53","v":1.7123287671232877E-4}]
["Permit Breaches","qty.",3,3,2,3,11,{"$f":"IF(G65>0,\"yes\",\"no\")","v":"yes"}]

{"sheet":"Operational Summary","index":4,"n_rows":31,"n_cols":11,"rows_kept":31,"cut":false,"hidden":false,"merged":[[4,0,26,8],[30,0,51,8],[4,10,13,13],[30,10,39,13]]}
[{"$f":"+'Cover Page'!$B$29","v":"Annual Performance Report 2023"},null,null,null,{"$f":"+'Cover Page'!$B$33","v":"Stoke Energy from Waste "}]
[]
["Summary of Plant Operations and Maintenance during the reporting year",null,null,null,null,null,null,null,null,null,"Notes:"]
[]
["In 2023, grate bar issues were the main reason of boiler unavailability in Stoke. After experiencing a number of quality issues, it has now been agreed that only Martin bars will be used for replacements.\no 28 rows grate bars replaced for Martin OEM Bars – 7 rows per grate run.\no ID Fan 1 motor replaced due to showing signs of distress.\no ID Fans 1 & 2 old control dampers removed.\no Carbon systems upgraded to provide redundancy availability.\no 4 off new sootblowers fitted – 2 per boiler.\no All 80 superheater panels (40 per boiler) replaced for new as per tube replacement regime.\no Boiler availability including outages was 88.3%. Turbine including outage periods and repair periods 90.45%\no Turbine coupling reconditioned/replaced. A NEW coupling is held on site in addition.\no TG health check performed which includes windings testing .\no EDG serviced as per manufacturers recommendations. EDG also benefitted from a load bank test to check EDG maximum power output for a sustained period.\no Fluorescent tubes/fittings replaced with LED’s when failures occurred – as part of an ongoing program.\no Statutory inspections were regularly performed.\n\nExtensive scheduled maintenance was undertaken at the plants annual planned shutdown period:\no Boilers thorough inspections performed. Thin pipes and worn refractory renewed. \no Soot blowers and air hammers inspected and maintained.\no Combustion system thoroughly inspected and worn parts replaced. \no Auxiliary burners inspected and serviced. \no Hydraulic packs serviced.\no All 4 boiler pressure relief valves serviced. \no Common vessels and main valves inspected. \no Bag house filters and scrubbers cleaned, inspected and repaired where needed. The program of bags replacement continued. \no Ducting and expansion joints inspections and repairs made. \no Fly ash and bottom ash conveyors inspected and serviced. \no Lime, urea and activated carbon systems cleaned and inspected. \no Main fans and pumps inspected and serviced. The main electrical motors have been tested. \no Main instrumentation calibrated. \no Main electrical systems inspected and tested. ",null,null,null,null,null,null,null,null,null,"Include summary of key operational and/or mainteanance activity undertaken in the year, such as any major component upgrades and/or replacements "]
[]
[]
[]
[]
[]
[]
[]
[]
[]
[]
[]
[]
[]
[]
[]
[]
[]
[]
[]
[]
[]
[]
[]
["Summary of Residue Handling for the reporting year"]
[]
["\n2 main sources of residue arise from the operation of the plant:\n- Incinerator Bottom ash (IBA) (which also includes ferrous metals discharged within the ash)\n- Air Pollution Control residues (APCr)\n\nResidues from the flue gas treatment process (APCr) are discharged into an enclosed system which feed into double-skinned heavy-duty bags prior to removal from site for controlled treatment and disposal.  These residues account for under 5% of the total weight of all refuse processed by the facility.\nThe residues were sent - for most of 2023 - to Castle Waste Services Ltd's Ilkeston Waste Treatment and Transfer Facility (AP3337SJ). \nIn mid November 2023, the residues were redirected to Augean South Ltd's Kings Cliffe East Northants Resource Management Facility (YP3138XB).\nThese residues are ultimately disposed of in specialist landfill.\n\nIncinerator Bottom Ash (IBA) is discharged from the lower end of each grate into a water filled ash discharger, where it is quenched and then ejected onto a conveyor system. Ferrous metals are removed via magnetic separation.  \nThe resulting materials are stored in the storage bunkers prior to removal from site for recycling - the storage capacity for bottom ash residues and separated ferrous metals is sufficient to ensure 4 days storage. \nIBA is transferred offsite for further treatment and processing sites regularly between Mondays and Fridays and are scheduled to ensure sufficient storage capacity is maintained at all times. Collections are available at weekends if operational conditions require this facility.\nBottom ash from North Midlands Operations Ltd is currently being sent to Johnsons Aggregates & Recycling Ltd Midlands Urban Mine in Ilkeston (MP3430AM) and Bunny site (DP3493CT).\nAt these sites, additional ferrous and trace metals is removed, and the remaining material being further processed into usable aggregate in a zero to landfill process.",null,null,null,null,null,null,null,null,null,"Include in here a summary of residue handling regimes and destinations "]

{"sheet":"Perf. Form 1","index":5,"n_rows":54,"n_cols":10,"rows_kept":54,"cut":false,"hidden":false,"merged":[[47,0,47,1],[49,0,49,9],[50,0,51,9],[38,0,38,9],[39,0,40,9],[43,0,43,1],[43,2,43,9],[45,0,45,1],[46,0,46,1],[36,0,36,3],[36,4,36,5],[36,7,36,8],[37,0,37,3],[37,4,37,5],[37,7,37,8],[34,0,34,3],[34,4,34,5],[34,7,34,8],[35,0,35,3],[35,4,35,5],[35,7,35,8],[31,0,31,3],[31,7,31,8],[32,0,32,3],[32,4,32,5],[32,7,32,8],[33,0,33,3],[33,4,33,5],[33,7,33,8],[23,0,23,3],[23,4,23,5],[23,6,23,7],[23,8,23,9],[25,0,25,9],[26,0,28,9],[21,0,21,1],[21,2,21,3],[21,4,21,5],[21,6,21,7],[21,8,21,9],[22,0,22,3],[22,4,22,5],[22,6,22,7],[22,8,22,9],[19,0,19,1],[19,2,19,3],[19,4,19,5],[19,6,19,7],[19,8,19,9],[20,0,20,1],[20,2,20,3],[20,4,20,5],[20,6,20,7],[20,8,20,9],[17,0,17,1],[17,2,17,3],[17,4,17,5],[17,6,17,7],[17,8,17,9],[18,0,18,1],[18,2,18,3],[18,4,18,5],[18,6,18,7],[18,8,18,9],[15,0,15,1],[15,2,15,3],[15,4,15,5],[15,6,15,7],[15,8,15,9],[16,0,16,9],[13,0,13,1],[13,2,13,3],[13,4,13,5],[13,6,13,7],[13,8,13,9],[14,0,14,3],[14,4,14,5],[14,6,14,7],[14,8,14,9],[11,0,11,1],[11,2,11,3],[11,4,11,5],[11,6,11,7],[11,8,11,9],[12,0,12,1],[12,2,12,3],[12,4,12,5],[12,6,12,7],[12,8,12,9],[9,0,9,9],[10,0,10,1],[10,2,10,3],[10,4,10,5],[10,6,10,7],[10,8,10,9],[2,0,2,4],[2,6,2,8],[3,1,3,4],[5,3,5,4],[5,6,5,7],[8,0,8,1],[8,2,8,3],[8,4,8,5],[8,6,8,7],[8,8,8,9]]}
[{"$f":"+'Cover Page'!C39","v":2023}," Annual Reporting Performance Form 1"]
[]
[{"$f":"+'Cover Page'!B31","v":"Permit EPR/HP3341QV/V002"},null,null,null,null,"Operator: ",{"$f":"+'Cover Page'!$B$33","v":"Stoke Energy from Waste "}]
["Facility:",{"$f":"+'Cover Page'!B33:I33","v":"Stoke Energy from Waste "},null,null,null,"Form:","Performance 1"]
[]
["Reporting  Period from: ",null,null,"2023-01-01",null,"to:","2023-12-31"]
[]
[{"$f":"+A1","v":2023},"Annual Reporting of Waste Disposal and Recovery"]
["Waste Description",null,"Disposal Route(s)",null,"Disposal Tonnes",null,"Recovery Tonnes",null,"% / tonne of waste incinerated"]
["1) Hazardous Wastes"]
["APC Residues",null,"D13",null,5957,null,0,null,{"$f":"IF((E11+G11)>0,(E11+G11)/'Operational Data'!$G$21, \"-\")","v":3.219269138898196E-2}]
["IBA",null,null,null,null,null,null,null,{"$f":"IF((E12+G12)>0,(E12+G12)/'Operational Data'!$G$21, \"-\")","v":"-"}]
[null,null,null,null,null,null,null,null,{"$f":"IF((E13+G13)>0,(E13+G13)/'Operational Data'!$G$21, \"-\")","v":"-"}]
[null,null,null,null,null,null,null,null,{"$f":"IF((E14+G14)>0,(E14+G14)/'Operational Data'!$G$21, \"-\")","v":"-"}]
["Total Hazardous Waste",null,null,null,{"$f":"SUM(E11:F14)","v":5957},null,{"$f":"SUM(G11:H14)","v":0},null,{"$f":"IF((E15+G15)>0,(E15+G15)/'Operational Data'!$G$21, \"-\")","v":3.219269138898196E-2}]
[]
["2) Non-Hazardous Wastes"]
["IBA",null,"R04",null,32778,null,null,null,{"$f":"IF((E18+G18)>0,(E18+G18)/'Operational Data'!$G$21, \"-\")","v":0.17713816322780773}]
["Ferrous Metal",null,"R04",null,3244,null,null,null,{"$f":"IF((E19+G19)>0,(E19+G19)/'Operational Data'!$G$21, \"-\")","v":1.7531155089114903E-2}]
["Process Water",null,null,null,4218,null,null,null,{"$f":"IF((E20+G20)>0,(E20+G20)/'Operational Data'!$G$21, \"-\")","v":2.2794824958658033E-2}]
[null,null,null,null,null,null,null,null,{"$f":"IF((E21+G21)>0,(E21+G21)/'Operational Data'!$G$21, \"-\")","v":"-"}]
[null,null,null,null,null,null,null,null,{"$f":"IF((E22+G22)>0,(E22+G22)/'Operational Data'!$G$21, \"-\")","v":"-"}]
["Total Non-Hazardous Waste",null,null,null,{"$f":"SUM(E18:F22)","v":40240},null,{"$f":"SUM(G18:H22)","v":0},null,{"$f":"IF((E23+G23)>0,(E23+G23)/'Operational Data'!$G$21, \"-\")","v":0.21746414327558067}]
["TOTAL WASTE",null,null,null,{"$f":"+E23+E15","v":46197},null,{"$f":"+G23+G15","v":0},null,{"$f":"IF((E24+G24)>0,(E24+G24)/'Operational Data'!$G$21, \"-\")","v":0.24965683466456265}]
[]
["Operator’s comments :"]
[]
[]
[]
[]
[{"$f":"+A1","v":2023},"Annual Reporting of Water and Other Raw Material Usage"]
["Raw Material",null,null,null,"Usage",null,"Unit","Specific Useage",null,"Unit"]
["Mains Water",null,null,null,{"$f":"+'Operational Data'!G42","v":34267000},null,"m3",{"$f":"IF(E33>0,E33/'Operational Data'!$G$21,\"-\")","v":185.18498503042554},null,"m3/te"]
["Total Water",null,null,null,{"$f":"+'Operational Data'!G43+'Operational Data'!G42","v":83382000},null,"m3",{"$f":"IF(E34>0,E34/'Operational Data'!$G$21,\"-\")","v":450.61121258957428},null,"m3/te"]
["Urea / Ammonia",null,null,null,{"$f":"+'Operational Data'!G45","v":317000},null,"kg",{"$f":"IF(E35>0,E35/'Operational Data'!$G$21,\"-\")","v":1.7131245879313886},null,"kg/te"]
["Activated Carbon",null,null,null,{"$f":"+'Operational Data'!G46","v":24000},null,"kg",{"$f":"IF(E36>0,E36/'Operational Data'!$G$21,\"-\")","v":0.12970028425978966},null,"kg/te"]
["Lime / hydrated lime / Sodium Bicarb.",null,null,null,{"$f":"+'Operational Data'!G47","v":2009000},null,"kg",{"$f":"IF(E37>0,E37/'Operational Data'!$G$21,\"-\")","v":10.856994628246561},null,"kg/te"]
[]
["Operator’s comments :"]
[]
[]
[]
[{"$f":"+A31","v":2023},"Annual Reporting of other performance indicators "]
["Parameter",null,"Results by Line"]
[null,null,"A1","A2","A3","A4","A5",null,"Turbine 1","Turbine 2"]
["Operating hours for the year, hours",null,7827,7824]
["Number of periods of abnormal operation, qty.",null,2,1]
["Cumulative hours of abnormal operation for this year, hours",null,1,0.5]
[]
["Operator’s comments :"]
[]
[]
[]
["Signed: ",null,null,null,null,null,"Date:"]

{"sheet":"Energy Form 1","index":6,"n_rows":29,"n_cols":7,"rows_kept":29,"cut":false,"hidden":false,"merged":[[15,0,15,2],[15,3,15,4],[15,6,15,8],[17,0,17,8],[18,0,24,8],[13,0,13,2],[13,3,13,4],[13,6,13,8],[14,0,14,2],[14,3,14,4],[14,6,14,8],[11,0,11,2],[11,3,11,4],[11,6,11,8],[12,0,12,2],[12,3,12,4],[12,6,12,8],[9,0,9,2],[9,3,9,4],[9,6,9,8],[10,0,10,2],[10,3,10,4],[10,6,10,8],[2,6,2,8],[4,1,4,4],[6,3,6,4],[6,6,6,7],[8,0,8,2],[8,3,8,4],[8,6,8,8]]}
[{"$f":"+'Cover Page'!C39","v":2023}," Annual Reporting of Energy Usage/Export"]
[]
[{"$f":"+'Cover Page'!B31","v":"Permit EPR/HP3341QV/V002"},null,null,null,null,"Operator: ",{"$f":"+'Cover Page'!$B$33","v":"Stoke Energy from Waste "}]
[]
["Facility:",{"$f":"+'Cover Page'!B33:I33","v":"Stoke Energy from Waste "},null,null,null,"Form:","Energy 1"]
[]
["Reporting  Period from: ",null,null,{"$f":"+'Perf. Form 1'!D6:E6","v":"2023-01-01"},null,"to:",{"$f":"+'Perf. Form 1'!G6:H6","v":"2023-12-31"}]
[]
["Energy Source",null,null,"Energy Usage",null,"Unit","Specific Useage (KWh/tonne incinerated"]
["Electricity Produced",null,null,{"$f":"+'Operational Data'!G24","v":93009},null,"MWh",{"$f":"+'Operational Data'!H24","v":502.63723911328236}]
["Electricity Imported   ",null,null,{"$f":"+'Operational Data'!G27","v":856.30499999999995},null,"MWh",{"$f":"+'Operational Data'!H27","v":4.6276250797116329}]
["Electricity Exported",null,null,{"$f":"+'Operational Data'!G25","v":79356.63},null,"MWh",{"$f":"+'Operational Data'!H25","v":428.85739453745634}]
["Gas Oil",null,null,null,null,"tonnes"]
["Steam/hot water exported",null,null,{"$f":"+'Operational Data'!G30","v":0},null,"GWh",{"$f":"+'Operational Data'!H30","v":"-"}]
[]
[]
[]
["Operator’s comments :"]
[]
[]
[]
[]
[]
[]
[]
[]
[]
[]
["Signed: ",null,null,null,null,null,"Date:"]

{"sheet":"Permit Compliance","index":7,"n_rows":42,"n_cols":12,"rows_kept":42,"cut":false,"hidden":false,"merged":[[29,7,29,9],[30,1,30,3],[31,1,31,3],[30,4,30,6],[31,4,31,6],[30,7,30,9],[31,7,31,9],[29,1,29,3],[29,4,29,6],[28,1,28,3],[27,4,27,6],[28,4,28,6],[27,7,27,9],[28,7,28,9],[41,4,41,8],[21,1,21,3],[22,1,22,3],[23,1,23,3],[24,1,24,3],[21,4,21,6],[22,4,22,6],[23,4,23,6],[24,4,24,6],[21,7,21,9],[39,1,39,3],[39,4,39,6],[39,7,39,9],[40,1,40,3],[40,4,40,6],[40,7,40,9],[37,1,37,3],[37,4,37,6],[37,7,37,9],[38,1,38,3],[38,4,38,6],[38,7,38,9],[34,0,34,10],[35,1,35,3],[35,4,35,6],[35,7,35,9],[36,1,36,3],[36,4,36,6],[36,7,36,9],[20,1,20,3],[20,4,20,6],[20,7,20,9],[32,1,32,3],[32,4,32,6],[32,7,32,9],[25,1,25,3],[25,4,25,6],[25,7,25,9],[26,1,26,3],[26,4,26,6],[26,7,26,9],[22,7,22,9],[23,7,23,9],[24,7,24,9],[27,1,27,3],[16,0,16,1],[16,2,16,4],[16,5,16,8],[18,0,18,10],[19,1,19,3],[19,4,19,6],[19,7,19,9],[14,0,14,1],[14,2,14,4],[14,5,14,8],[15,0,15,1],[15,2,15,4],[15,5,15,8],[7,0,7,1],[7,2,7,8],[8,0,8,1],[8,2,8,4],[8,5,8,8],[8,11,16,11],[9,0,9,1],[9,2,9,4],[9,5,9,8],[10,0,10,1],[12,0,12,1],[12,2,12,4],[12,5,12,8],[10,2,10,4],[10,5,10,8],[11,0,11,1],[11,2,11,4],[11,5,11,8],[13,0,13,1],[13,2,13,4],[13,5,13,8]]}
[{"$f":"+'[1]Cover Page'!$B$29","v":"Annual Performance Report 2023"},null,null,null,{"$f":"+'[1]Cover Page'!$B$33","v":"Name of Facility as per Permit"}]
[]
["Summary of Permit Compliance"]
[]
["Compliance with permit limits for continuously monitored pollutants"]
[]
["The plant met its emission limits as shown in the table below:"]
["Substance",null,"Percentage time compliant during operationNote 1",null,null,null,null,null,null,null,null,"Notes:"]
[null,null,"Half-hourly limit",null,null,"Daily limit",null,null,null,null,null,"Note 1: Please report to 2 decimal places, i.e. xx.xx%\n\nNote 2: Please provide a brief summary of each notification or non-compliance in the table (rather than just referring to notifications that were sent to the Regulator), including stating the value of measured result for any ELV exceedances.   \n\n"]
["Particulates",null,1,null,null,1]
["Oxides of nitrogen",null,1,null,null,1]
["Sulphur dioxide",null,1,null,null,1]
["Carbon monoxide",null,1,null,null,1]
["Total organic carbon",null,1,null,null,1]
["Hydrogen chloride",null,0.99950000000000006,null,null,0.99180000000000001]
["Hydrogen fluoride",null,1,null,null,1]
[null,null,0.99990000000000001,null,null,0.99880000000000002]
[]
["Summary of any notifications or non-compliances under the permit"]
["Date","Summary of notification or non-compliance [including Line/Reference]Note 2",null,null,"Reason ",null,null,"Measures taken to prevent reoccurrence"]
["2023-01-09","A2, HCl, Half-Hourly, 82.55mg/m3",null,null,"Explosive cleaning issue.",null,null,"Investigated cleaning methods."]
["14/01/2023","A2, HCl, Daily, 14.72mg/m3",null,null,"Explosive cleaning issue.",null,null,"Change post-clean process"]
["28/02/2023","A2, HCl, Half-Hourly, 85.85mg/m3",null,null,"Waste feedstock",null,null,"Increase homogenisation."]
["26/05/2023","A1, HCl, Half-Hourly, Ab Ops, 79.33mg/m3",null,null,"Waste feed blockage.",null,null,"Increase inspection."]
["2023-06-05","A1, HCl, Half-Hourly, 67.73mg/m3",null,null,"Incorrect operator response.",null,null,"Procedure trained out."]
["2023-06-05","A2, HCl, Half-Hourly, 86.52mg/m3",null,null,"Incorrect operator response.",null,null,"Procedure trained out."]
["22/06/2023","A2, HCl, Daily, 10.77mg/m3",null,null,"Waste feedstock",null,null,"Update control system."]
["2023-07-05","A1, HCl, Daily, 10.28mg/m3",null,null,"Explosive cleaning issue.",null,null,"Change post-clean process"]
["2023-08-02","A1, HCl, Half-Hourly, 103.85mg/m3",null,null,"Explosive cleaning issue.",null,null,"Changed frequency."]
["2023-08-18","A2, HCl, Half-Hourly, Ab Ops, 60.73mg/m3",null,null,"Equipment failure (spindle)",null,null,"Replaced failed parts."]
["2023-08-25","A1, HCl, Half-Hourly, Ab Ops, 60.03mg/m3",null,null,"Pump blockage.",null,null,"Unblocked pump."]
["2023-10-16","A1 HCl, Half-Hourly, 16.25mg/m3",null,null,"Waste feedstock",null,null,"Lime system upgrade."]
["2023-10-16","A2, HCl, Half-Hourly, 79.91mg/m3",null,null,"Waste feedstock",null,null,"Lime system upgrade."]
[]
["Summary of any complaints received and actions to taken to resolve them."]
["Date","Summary of complaint [including Line/Reference]",null,null,"Reason *",null,null,"Measures taken to prevent reoccurrence"]
[]
[]
[]
[]
[]
[null,null,null,null,"* including whether substantiated by the operator or the EA"]

{"sheet":"Improvements","index":8,"n_rows":39,"n_cols":5,"rows_kept":39,"cut":false,"hidden":false,"merged":[[37,0,37,8],[38,0,47,8],[4,0,4,8],[5,0,13,8],[15,0,15,8],[16,0,24,8],[26,0,26,8],[27,0,35,8]]}
[{"$f":"+'Cover Page'!$B$29","v":"Annual Performance Report 2023"},null,null,null,{"$f":"+'Cover Page'!$B$33","v":"Stoke Energy from Waste "}]
[]
["Summary of Plant Improvements"]
[]
["Summary of any efficiency improvements that have been completed within the year."]
["•\tRolling programme of replacement of fluorescent tubes to LED’s under a programme of replacement. As fluorescents fail, they get replaced by LED. Various sodium lamps were also replaced with LED – streetlights, floodlights within plant.\n\n•\tAny motors purchased were chosen to be, as far as practicable, of the highest energy efficiency.\n\n•\tAir cooled condensers (ACC) were cleaned to improve generation efficiency.\n\n•\tThe redundant ID Fan vanes were removed and an amount of sheet steel was rolled and welded in replacement of the vanes to improve gas flow and decrease ID fan motor loading.\n\n•\tA significant amount of lagging/cladding was replaced to improve thermal efficiency.\n\n•\tLime slurry preparation system – improvement to the pump connections and the slurry “recipe”. More stringent checks of the slurry specific gravity carried out. Slurry lime content increased slightly to encompass the new limits under BREF.\n\n•\tActive Carbon type changed from FGT+ to IPK-J for increased reactivity efficiency."]
[]
[]
[]
[]
[]
[]
[]
[]
[]
["Summary of any permit improvement conditions that have been completed within the year and the resulting environmental benefits."]
["The site has completed IC1-IC4 of the EPR/HP3341QV/V002\n\nIC1: The site performed a study to determine the extent to which the operation of the current systems in place at the plant to minimise NOx emissions can be further optimised beyond the new BREF ELV.\n\nIC2: The site submitted a report on whether waste feed to the plant can be proven to have a low and stable mercury content. To complete the 6 tests successfully, we maximised the dosing of activated carbon into the flue gas to ensure 6 consecutive tests were successful.\n\nIC3: The site submitted a report on whether dioxin emissions to air are stable.  To complete the 6 tests successfully, we maximised the dosing of activated carbon into the flue gas to ensure 6 consecutive tests were successful.\n\nIC4: We submitted a report calculating the Gross Electrical Efficiency of the plant."]
[]
[]
[]
[]
[]
[]
[]
[]
[]
["Summary of any changes to the plant or operating techniques which required a variation to the permit and a summary of the resulting environmental impact."]
["N/A"]
[]
[]
[]
[]
[]
[]
[]
[]
[]
["Summary of any other improvements made to the plant or planned to be made and a summary of the resulting environmental benefits."]
["•\tUnder BAT Ref (BREF) the active carbon system was upgraded to give redundancy with the dosing screws and motive air blowers. The screws were fitted with Variable Speed Drives. A heavy metals/dioxins test was carried out on this to prove the new dosing system was effective. When the results were obtained, this proved effective with no breaches.\n\n•\tA temperature mapping project was undertaken on the boilers under BREF to investigate the optimum injection point for the SNCR/Urea. The SNCR has a fairly narrow band on temperature for efficiency.\n\n•\tAir Cooled Condenser cleaning interval increased to Bi-Annual cleans as opposed to an annual clean.\n\n•\tLime system pump connections were improved, to reduce risk of blockages.\n\n•\tConveyor belt guarding now utilising a fortress key system to improve safety.\n\n•\tFire doors in administration building replaced to meet current legislation standards.\n\n•\tFire Risk Assessment performed and suggestions have/are being worked though."]

{"sheet":"Residue Quality ","index":9,"n_rows":35,"n_cols":6,"rows_kept":35,"cut":false,"hidden":false,"merged":[[35,0,40,6],[32,3,32,4],[34,0,34,6],[27,0,28,1],[29,0,29,1],[30,0,30,1],[31,0,31,1],[32,0,32,1],[29,3,29,4],[30,3,30,4],[29,5,29,6],[30,5,30,6],[31,5,31,6],[32,5,32,6],[22,0,23,1],[22,2,23,6],[31,3,31,4],[27,2,28,2],[28,3,28,4],[28,5,28,6],[27,3,27,6],[26,0,26,6],[7,0,8,6],[9,0,10,6],[14,0,15,1],[14,2,15,6],[20,0,21,1],[20,2,21,6],[16,0,17,1],[16,2,17,6],[18,0,19,1],[18,2,19,6],[12,0,12,6],[13,0,13,1],[13,2,13,6]]}
[{"$f":"+'Cover Page'!$B$29","v":"Annual Performance Report 2023"},null,null,null,{"$f":"+'Cover Page'!$B$33","v":"Stoke Energy from Waste "}]
[]
["Residue Quality Monitoring Requirements"]
[]
["Summary of monitoring undertaken and compliance"]
["IBA and APCr are tested in accordance with the site's permit. "]
["IBA is also sampled and analysed in accordance with the ESA protocol."]
[]
[]
[]
[]
[]
["Commentary on any specific events"]
["Date & Event",null,"Description"]
[]
[]
[]
[]
[]
[]
[]
[]
[]
[]
[]
[]
["Residue Quality Monitoring Results"]
["Parameter (unit) ",null,"Limit","Normal Operation "]
[null,null,null,"Bottom ash  ",null,"APC Residues"]
["Loss on Ignition (average %)",null,"<5%",2.2999999999999998]
["Total Organic Carbon (average %)",null,"<3%",0.9]
["No. of Assessments Undertaken",null,"---",28,null,4]
["No. of Hazardous Results",null,"---",0]
[]
["Comments :"]

{"sheet":"Public Liasion","index":10,"n_rows":29,"n_cols":5,"rows_kept":29,"cut":false,"hidden":false,"merged":[[23,0,24,1],[23,2,24,8],[25,0,26,1],[25,2,26,8],[28,0,28,8],[17,0,18,1],[17,2,18,8],[19,0,20,1],[19,2,20,8],[21,0,22,1],[21,2,22,8],[16,0,16,1],[16,2,16,8],[5,0,5,1],[5,2,5,8],[6,0,7,1],[6,2,7,8],[8,0,9,1],[8,2,9,8],[10,0,11,1],[10,2,11,8],[12,0,13,1],[12,2,13,8],[15,0,15,8]]}
[{"$f":"+'Cover Page'!$B$29","v":"Annual Performance Report 2023"},null,null,null,{"$f":"+'Cover Page'!$B$33","v":"Stoke Energy from Waste "}]
[]
["Details of Public & Stakeholder Liasion"]
[]
["Summary of events held during the reporting year."]
["Date",null,"Description"]
["Jan 23- Dec 23",null,"NMOL conducted monthly meetings with its core stakeholders to discuss operational, health and safety and environmental performance. "]
[]
[]
[]
[]
[]
[]
[]
[]
["List of events planned for next year"]
["Date",null,"Description"]
["Jan 24- Dec 24",null,"NMOL shall continue to conduct monthly meetings with its core stakeholders to discuss operational, health and safety and environmental performance. "]
[]
[]
[]
[]
[]
[]
[]
[]
[]
[]
["If you wish to be involved in the public liasion programme, please contact _________________"]

{"sheet":"CO2 N2O","index":11,"n_rows":23,"n_cols":6,"rows_kept":23,"cut":false,"hidden":false,"merged":[[20,2,20,3],[23,1,23,3],[4,0,4,3],[9,0,9,3],[17,0,17,3],[13,0,13,3],[12,0,12,1],[8,2,8,3],[11,2,11,3]]}
[{"$f":"+'Cover Page'!$B$29","v":"Annual Performance Report 2023"},null,{"$f":"+'Cover Page'!$B$33","v":"Stoke Energy from Waste "}]
[]
["Carbon dioxide emissions and biogenic content of waste inputs",null,null,null,null,"Notes:"]
[]
["Carbon dioxide emissions (all types of plant)"]
[null,"Annual mass of carbon dioxide released","tonnes ",174310]
[null,"Annual mass of carbon dioxide released per tonne of waste burned","t CO2 / t waste ",0.94199999999999995]
[null,"Annual mass of carbon dioxide released per MWh of energy exported","t CO2 / MWh export ",{"$f":"D6/'Operational Data'!G24","v":1.8741197088453805}]
[null,"Description of how annual carbon dioxide mass emission has been calculated. \nSee Note 1","0.942 tCO2/t waste as per Tolvik report 2022",null,null,"Note 1: Where available, data from CO2 CEMS should be used. \nOtherwise, only where no CEMS data is available, a suitable emissions factor should be used based on the tonnage of waste burned e.g.0.942 tCO2/t waste as per Tolvik report 2022, or other justified emissions factor  - refer to embedded Environment Agency guidance note above or updated version for suitable descriptive text."]
["Nitrous oxide emissions (only plants which use ammonia or urea to abate NOx emissions)"]
[null,"Annual mass emissions of nitrous oxide","tonnes N2O",9.4757999999999996]
[null,"Description of how annual nitrous oxide mass emission has been calculated\nSee Note 2","CEMS data",null,null,"Note 2: Where available, data from N2O CEMS should be used. \nIf no CEMS data is available, from periodic monitoring. Otherwise, a suitable emissions factor should be used based on the tonnage of waste burned e.g. 0.0981 kgN20/t waste as per 2021 Pollution Inventory data for plants with urea-based SNCR - refer to embedded Environment Agency guidance note above or updated version for suitable descriptive text."]
["Total annual carbon dioxide and nitrous oxide emissions. \nSee Note 3. ",null,"tonnes CO2e",177133.79,null,"Note 3: Total annual carbon dioxide and nitrous oxide emissions reported as carbon dioxide equivalent where 1 tonne nitrous oxide is equivalent to 298 tonne carbon dioxide"]
["Biogenic CO2 emissions (See Note 4)",null,null,null,null,"Note 4: Only plants combusting residual municipal waste, refuse derived fuel or solid recovered fuel"]
[null,"Percentage of total carbon dioxide emissions arising from biogenic waste","%",0.57299999999999995]
[null,"No. of measurements undertaken","Number",0]
[null,"Description of how percentage biogenic carbon dioxide emissions have been measured or calculated.\nSee Note 5",null,null,null,"Note 5: Examples include direct measurement via C14 method or BIOMA software - refer to embedded Environment Agency guidance note above or updated version for suitable descriptive text, quoting standards where relevant. \nOtherwise, as an approximation (and in lieu of any more accurate metrics which may be developed in future), the measured or estimated biogenic fraction by net calorific value can be assumed to be the same as the biogenic CO2 fraction of the total CO2 emissions from the plant. "]
["Biogenic fraction of waste feedstock (See Note 4)"]
[null,"Yearly average biogenic percentage of the waste by net calorific value (NCV)","%",0.57250000000000001]
[null,"If sampling undertaken, no. of samples used to ascertain average biogenic % above","Number",1]
[null,"Description of how biogenic percentage (by NCV) has been calculated or estimated. \nSee Note 6","In accordance with Ofgem-approved fuel measurement and sampling plan.",null,null,"Note 6: Where available, data from waste sampling should be used; otherwise, an estimated figure with justification can be used, or a figure assumed on the basis of a national average e.g. 2017 WRAP data for residual waste of 51.8% biogenic energy content - refer to embedded Environment Agency guidance note above or updated version for suitable descriptive text, quoting standards where relevant. "]
[]
[null,"Comments:"]

{"sheet":"Water","index":12,"n_rows":23,"n_cols":9,"rows_kept":23,"cut":false,"hidden":false,"merged":[[29,0,29,2],[29,3,29,4],[26,0,26,2],[26,3,26,4],[27,0,27,2],[27,3,27,4],[28,0,28,2],[28,3,28,4],[23,0,23,2],[23,3,23,4],[24,0,24,2],[24,3,24,4],[25,0,25,2],[25,3,25,4],[21,0,21,8],[22,0,22,2],[22,3,22,4],[14,0,15,1],[14,2,15,8],[16,0,17,1],[16,2,17,8],[18,0,19,1],[18,2,19,8],[5,0,6,8],[7,0,8,8],[9,0,10,8],[12,0,12,8],[13,0,13,1],[13,2,13,8]]}
[{"$f":"+'Cover Page'!$B$29","v":"Annual Performance Report 2023"},null,null,null,{"$f":"+'Cover Page'!$B$33","v":"Stoke Energy from Waste "}]
[]
["Emissions to Water"]
[]
["Summary of monitoring undertaken and compliance"]
["Annual sample taken and analysed.  All results below limits given in discharge consent."]
[]
["Waste water arising from the process is neutralised and recycled as far as is practicible in order to minimise the quantity released to sewer."]
[]
[]
[]
[]
["Commentary on any specific events"]
["Date & Event",null,"Description"]
[]
[]
[]
[]
[]
[]
[]
["Emissions to Water / Sewer"]
["Parameter",null,null,"Monitoring Frequency",null,"Limit","Target","Max.","Average"]

{"sheet":"Air (periodic)","index":13,"n_rows":39,"n_cols":13,"rows_kept":39,"cut":false,"hidden":false,"merged":[[13,10,14,12],[15,10,16,10],[15,11,16,11],[15,12,16,12],[18,3,18,4],[13,3,13,4],[14,3,14,4],[15,3,15,4],[16,3,16,4],[17,3,17,4],[21,3,21,4],[22,3,22,4],[23,3,23,4],[24,3,24,4],[31,3,31,4],[25,3,25,4],[26,3,26,4],[28,3,28,4],[38,0,38,9],[19,0,19,1],[20,0,20,1],[21,0,21,1],[34,3,34,4],[35,3,35,4],[33,0,33,1],[34,0,34,1],[35,0,35,1],[36,0,36,1],[24,0,24,1],[32,3,32,4],[27,3,27,4],[33,3,33,4],[19,3,19,4],[20,3,20,4],[39,0,40,9],[25,0,25,1],[26,0,26,1],[22,0,22,1],[23,0,23,1],[37,0,37,1],[27,0,27,1],[28,0,28,1],[29,0,29,1],[30,0,30,1],[31,0,31,1],[32,0,32,1],[37,3,37,4],[29,3,29,4],[30,3,30,4],[36,3,36,4],[16,0,16,1],[17,0,17,1],[18,0,18,1],[13,0,13,1],[14,0,14,1],[15,0,15,1],[12,0,12,1],[11,3,11,4],[12,3,12,4],[9,0,10,1],[9,5,9,9],[9,3,10,4],[9,2,10,2],[5,10,8,13],[9,10,11,13],[8,0,8,9],[5,0,6,9],[11,0,11,1]]}
[{"$f":"+'Cover Page'!$B$29","v":"Annual Performance Report 2023"},null,null,null,{"$f":"+'Cover Page'!$B$33","v":"Stoke Energy from Waste "}]
[]
["Emissions to Air (periodically monitored)"]
[]
["Summary of monitoring undertaken, standards used and compliance",null,null,null,null,null,null,null,null,null,"Notes:"]
[null,null,null,null,null,null,null,null,null,null,"Template may require adjustment for any bespoke monitoring requirements of permit - please also check that all default ELV values, reference periods and the stated oxygen reference value match those for your plant, and edit if necessary!"]
[]
[]
["Results of emissions to air that are periodically monitored - oxygen reference 6% "]
["Substance",null,"Ref. Period","Emission Limit Value*",null,"Average",null,null,null,null,"User to add additional tables as necessary, depending on whether quarterly or bi-annual reporting is required for the compliance year"]
[null,null,null,null,null,"A1","A2","A3","A4","A5"]
["Hydrogen fluoride",null,"1 hr","2 mg/m3",null,0.28000000000000003,0.19]
["Cd and Th and their compounds",null,"0.5-8hrs","0.05 mg/m3",null,1E-3,1.6000000000000001E-3]
["Hg and its compounds",null,"0.5-8hrs","0.05 mg/m3",null,2E-3,3.8999999999999998E-3,null,null,null,"* Denotes limits that were in force until 2 December 2023; from 3 December 2023 the following new limits applied (those not listed remained unchanged):"]
["Sb, As, Pb, Cr, Co, Cu, Mn, Ni, V and their compounds",null,"0.5-8hrs","0.5 mg/m3",null,3.8600000000000002E-2,4.9399999999999999E-2]
["Dioxins & Furans (I-TEQ)",null,"6-8hrs","0.1 ng/m3",null,1.3899999999999999E-2,4.58E-2,null,null,null,"Substance","Reference Period","Emission Limit Value"]
["PCBs (WHO-TEQ Humans / Mammals)",null,"6-8hrs","None set ng/m3",null,1E-3,4.1000000000000003E-3]
["PCBs (WHO-TEQ Fish)",null,"6-8hrs","None set ng/m3",null,1.7000000000000001E-4,1.8000000000000001E-4,null,null,null,"Hydrogen fluoride","Average of three consecutive measurements of at least 30 minutes each","1 mg/m3"]
["PCBs (WHO-TEQ Birds)",null,"6-8hrs","None set ng/m3",null,2.7499999999999998E-3,6.4000000000000003E-3,null,null,null,"Cd and Th and their compounds","Average of three consecutive measurements of at least 30 minutes each","0.02 mg/m3"]
["Dioxins & Furans (WHO-TEQ Humans / Mammals)",null,"6-8hrs","None set ng/m3",null,1.32E-2,4.36E-2,null,null,null,"Hg and its compounds","Average of three consecutive measurements of at least 30 minutes each","0.02 mg/m3"]
["Dioxins & Furans (WHO-TEQ Fish)",null,"6-8hrs","None set ng/m3",null,1.485E-2,0.05,null,null,null,"Sb, As, Pb, Cr, Co, Cu, Mn, Ni, V and their compounds","Average of three consecutive measurements of at least 30 minutes each","0.3 mg/m3"]
["Dioxins & Furans (WHO-TEQ Birds)",null,"6-8hrs","None set ng/m3",null,2.1899999999999999E-2,8.6499999999999994E-2,null,null,null,"Dioxins & Furans (I-TEQ)","6-8hrs","0.06 ng/m3"]
["Anthanthrene",null,"6-8hrs","None set µg/m3",null,"<0.0015","<0.002"]
["Benzo(a)anthracene",null,"6-8hrs","None set µg/m3",null,0,3.0000000000000001E-3]
["Benzo(a)pyrene",null,"6-8hrs","None set µg/m3",null,"<0.0015","<0.002"]
["Benzo(b)fluoranthene",null,"6-8hrs","None set µg/m3",null,"<0.0015",3.0000000000000001E-3]
["Benzo(b)naptho(2,1-d) thiophene",null,"6-8hrs","None set µg/m3",null,0.03,"<0.002"]
["Benzo(c)phenanthrene",null,"6-8hrs","None set µg/m3",null,"<0.0015","<0.002"]
["Benzo(ghi)perylene",null,"6-8hrs","None set µg/m3",null,0,"<0.002"]
["Benzo(k)fluoranthene",null,"6-8hrs","None set µg/m3",null,"<0.0015","<0.002"]
["Cholanthrene",null,"6-8hrs","None set µg/m3",null,"<0.0015","<0.002"]
["Chrysene",null,"6-8hrs","None set µg/m3",null,0,4.0000000000000001E-3]
["Cyclopenta(cd)pyrene",null,"6-8hrs","None set µg/m3",null,"<0.0015","<0.002"]
["Dibenzo(ai)pyrene",null,"6-8hrs","None set µg/m3",null,"<0.0015","<0.002"]
["Dibenzo(ah)anthracene",null,"6-8hrs","None set µg/m3",null,"<0.0015","<0.002"]
["Fluoranthene",null,"6-8hrs","None set µg/m3",null,0.03,4.9000000000000002E-2]
["Indeno(123-cd) pyrene",null,"6-8hrs","None set µg/m3",null,"<0.0015","<0.002"]
["Naphthalene",null,"6-8hrs","None set µg/m3",null,1.57,0.62]
["Comments :"]

{"sheet":"Air (CEMS)","index":14,"n_rows":28,"n_cols":16,"rows_kept":28,"cut":false,"hidden":false,"merged":[[28,0,29,12],[13,0,14,0],[5,0,6,12],[7,0,8,12],[10,0,10,12],[11,0,12,0],[11,2,12,2],[11,1,12,1],[11,3,11,4],[11,5,11,6],[11,7,11,8],[11,9,11,10],[11,11,11,12],[14,13,15,13],[14,14,15,14],[14,15,15,15],[12,13,13,15],[26,0,26,12]]}
[{"$f":"+'Cover Page'!$B$29","v":"Annual Performance Report 2023"},null,null,null,null,null,null,null,{"$f":"+'Cover Page'!$B$33","v":"Stoke Energy from Waste "}]
[]
["Emissions to Air (continously monitored)"]
[null,null,null,null,null,null,null,null,null,null,null,null,null,"Notes:"]
["Summary of monitoring undertaken, standards used and compliance",null,null,null,null,null,null,null,null,null,null,null,null,"Template may require adjustment for any bespoke monitoring requirements of permit"]
[null,null,null,null,null,null,null,null,null,null,null,null,null,"Please check that all default ELV values match those for your plant and edit if necessary!"]
[null,null,null,null,null,null,null,null,null,null,null,null,null,"Report to 1 decimal place"]
[]
[]
[]
["Results of emissions to air that are continuously monitored (maximum and average values for each line) - oxygen reference 11%"]
["Substance","Reference Period","Emission Limit Value**","A1",null,"A2",null,"A3",null,"A4",null,"A5"]
[null,null,null,"Max.","Avg.","Max.","Avg.","Max.","Avg.","Max.","Avg.","Max.","Avg.","** Denotes limits that were in force until 2 December 2023; from 3 December 2023 the following new limits applied (those not listed remained unchanged):"]
["Oxides of nitrogen","Daily mean","200 mg/m3 ",{"$f":"NOx!O19","v":185},{"$f":"NOx!N19","v":166.99083333333334},{"$f":"NOx!O34","v":197},{"$f":"NOx!N34","v":156.52916666666667}]
[null,"½ hourly mean","400 mg/m3 ",{"$f":"NOx!M19","v":308},{"$f":"NOx!L19","v":167.16666666666666},{"$f":"NOx!M34","v":350},{"$f":"NOx!L34","v":156.66666666666666},null,null,null,null,null,null,"Substance","Reference Period","Emission Limit Value"]
["Particulates","Daily mean","10 mg/m3",{"$f":"Particulates!O19","v":6},{"$f":"Particulates!N19","v":2.4841666666666664},{"$f":"Particulates!O34","v":4},{"$f":"Particulates!N34","v":0.35249999999999998}]
[null,"½ hourly mean","30 mg/m3 ",{"$f":"Particulates!M19","v":11},{"$f":"Particulates!L19","v":2.5350000000000001},{"$f":"Particulates!M34","v":9},{"$f":"Particulates!L34","v":0.41666666666666669},null,null,null,null,null,null,"Oxides of nitrogen","Daily mean","180 mg/m3 "]
["Total Organic Carbon ","Daily mean","10 mg/m3 ",{"$f":"TOC!O19","v":1},{"$f":"TOC!N19","v":1.1000000000000001E-2},{"$f":"TOC!O34","v":1},{"$f":"TOC!N34","v":0.12666666666666668},null,null,null,null,null,null,"Particulates","Daily mean","5 mg/m3 "]
[null,"½ hourly mean","20 mg/m3 ",{"$f":"TOC!M19","v":15},{"$f":"TOC!L19","v":1.0833333333333334E-2},{"$f":"TOC!M34","v":11},{"$f":"TOC!L34","v":0.12666666666666668},null,null,null,null,null,null,"Hydrogen chloride","Daily mean","8 mg/m3 "]
["Hydrogen chloride ","Daily mean","10 mg/m3 ",{"$f":"HCl!O19","v":12},{"$f":"HCl!N19","v":6.3133333333333335},{"$f":"HCl!O34","v":15},{"$f":"HCl!N34","v":6.8250000000000002},null,null,null,null,null,null,"Sulphur dioxide","Daily mean","40 mg/m3 "]
[null,"½ hourly mean","60 mg/m3 ",{"$f":"HCl!M19","v":192},{"$f":"HCl!L19","v":6.25},{"$f":"HCl!M34","v":107},{"$f":"HCl!L34","v":6.833333333333333},null,null,null,null,null,null,"Ammonia","Daily mean","15 mg/m3 "]
["Sulphur dioxide","Daily mean","50 mg/m3 ",{"$f":"'SO2'!O19","v":75},{"$f":"'SO2'!N19","v":28.188333333333329},{"$f":"'SO2'!O34","v":41},{"$f":"'SO2'!N34","v":22.128333333333334}]
[null,"½ hourly mean","200 mg/m3 ",{"$f":"'SO2'!M19","v":194},{"$f":"'SO2'!L19","v":28.083333333333332},{"$f":"'SO2'!M34","v":188},{"$f":"'SO2'!L34","v":22}]
["Carbon monoxide ","Daily mean","50 mg/m3 ",{"$f":"'CO 95% 10 min'!Q22","v":37},{"$f":"'CO 95% 10 min'!P22","v":10.071666666666667},{"$f":"'CO 95% 10 min'!Q37","v":9},{"$f":"'CO 95% 10 min'!P37","v":0.82916666666666672}]
[null,"95%ile 10-min avg *","150 mg/m3 *",{"$f":"'CO 95% 10 min'!M22","v":36.166666666666664},{"$f":"'CO 95% 10 min'!N22","v":10},{"$f":"'CO 95% 10 min'!M37","v":9.75},{"$f":"'CO 95% 10 min'!N37","v":0.91666666666666663}]
[" Ammonia","Daily mean","No limit set until 03/12/23",{"$f":"'NH3'!O19","v":16},{"$f":"'NH3'!N19","v":5.9974999999999987},{"$f":"'NH3'!O34","v":18},{"$f":"'NH3'!N34","v":3.6400000000000006}]
["** = delete as appropriate, depending on whether your plant has half-horly or 10-min CO ELVs\n"]
["Comments :"]

{"sheet":"HCl","index":15,"n_rows":79,"n_cols":17,"rows_kept":79,"cut":false,"hidden":false,"merged":[[12,16,15,18],[51,9,63,9],[66,9,78,9],[4,9,4,14],[4,1,4,3],[4,4,4,6],[48,0,51,6],[47,0,47,6],[6,9,18,9],[21,9,33,9],[36,9,48,9],[3,16,7,18],[9,16,11,18],[18,4,18,6]]}
[{"$f":"+'Cover Page'!$B$29","v":"Annual Performance Report 2023"},null,null,null,{"$f":"+'Cover Page'!$B$33","v":"Stoke Energy from Waste "}]
[]
["Monitoring of Hydrogen Chloride emissions",null,null,"Whole Installation",null,null,"See  Notes in Cell Q3",null,null,{"$f":"+A3","v":"Monitoring of Hydrogen Chloride emissions"},null,null,null,"Per Combustion Line",null,null,"Notes:"]
[null,null,null,null,null,null,null,null,null,null,null,null,null,null,null,null,"User to add logic to complete Whole installation, Table A5:G18. From the data in Per Combustion Line, Table J6:O79, subject to No. of lines installed"]
["mg/Nm3","1/2 Hourly Reference Periods",null,null,"Daily Reference Periods",null,null,null,null,"Boiler 1"]
[{"$f":"+'Cover Page'!C39","v":2023},"1/2 hourly HCl ELV","Monthly 1/2 hourly mean","Highest 1/2 hourly maximum","Daily HCl ELV*","Monthly daily mean","Highest daily maximum",null,null,{"$f":"+A6","v":2023},"mg/Nm3","Monthly 1/2 hourly mean","Monthly 1/2 hourly maximum","Monthly daily mean","Monthly daily maximum"]
["Jan",60,{"$f":"AVERAGE(L7,L22)","v":7.5},{"$f":"MAX(M7,M22)","v":83},10,{"$f":"AVERAGE(N7,N22)","v":7.6749999999999998},{"$f":"MAX(O7,O22)","v":15},null,null,"A1","Jan",7,21,7.32,9]
["Feb",60,{"$f":"AVERAGE(L8,L23)","v":7.5},{"$f":"MAX(M8,M23)","v":86},10,{"$f":"AVERAGE(N8,N23)","v":7.59},{"$f":"MAX(O8,O23)","v":10},null,null,null,"Feb",7,24,7.07,8]
["Mar",60,7,27,10,7.0250000000000004,9,null,null,null,"Mar",7,16,6.71,8,null,"Whole Installation table A5:G18:"]
["Apr",60,6,50,10,6.1,8,null,null,null,"Apr",5,50,5.47,8,null,"Mean: for 1/2 hourly and daily periods calculate mean of values across all operational combustion lines for the month"]
["May",60,6.5,79,10,6.8599999999999994,10,null,null,null,"May",7,79,7.39,10]
["Jun",60,7.5,107,10,7.6899999999999995,11,null,null,null,"Jun",7,68,7.5,10]
["Jul",60,6.5,50,10,6.7549999999999999,10,null,null,null,"Jul",7,33,7.06,9,null,"Maximum: for 1/2 hourly and daily periods use the highest value across all operational combustion lines for the month"]
["Aug",60,6.5,104,10,6.35,8,null,null,null,"Aug",7,104,6.73,8]
["Sep",60,6.5,28,10,6.3450000000000006,8,null,null,null,"Sep",6,23,5.69,7]
["Oct",60,6,192,10,5.6750000000000007,12,null,null,null,"Oct",5,192,4.6500000000000004,12]
["Nov",60,5.5,38,10,5.3599999999999994,7,null,null,null,"Nov",5,37,4.97,7]
["Dec",60,5.5,52,10,5.4050000000000002,9,null,null,null,"Dec",5,52,5.2,7]
[null,null,null,null,"* ELV reduced to 8 mg/Nm3 on 3 December 2023",null,null,null,null,null,"Annual",{"$f":"AVERAGE(L7:L18)","v":6.25},{"$f":"MAX(M7:M18)","v":192},{"$f":"AVERAGE(N7:N18)","v":6.3133333333333335},{"$f":"MAX(O7:O18)","v":12}]
[null,null,null,null,null,null,null,null,null,null,null,null,"Boiler 2"]
[null,null,null,null,null,null,null,null,null,{"$f":"+A6","v":2023},"mg/Nm3","Monthly 1/2 hourly mean","Monthly 1/2 hourly maximum","Monthly daily mean","Monthly daily maximum"]
[null,null,null,null,null,null,null,null,null,"A2","Jan",8,83,8.0299999999999994,15]
[null,null,null,null,null,null,null,null,null,null,"Feb",8,86,8.11,10]
[null,null,null,null,null,null,null,null,null,null,"Mar",7,27,7.34,9]
[null,null,null,null,null,null,null,null,null,null,"Apr",7,40,6.73,8]
[null,null,null,null,null,null,null,null,null,null,"May",6,31,6.33,9]
[null,null,null,null,null,null,null,null,null,null,"Jun",8,107,7.88,11]
[null,null,null,null,null,null,null,null,null,null,"Jul",6,50,6.45,10]
[null,null,null,null,null,null,null,null,null,null,"Aug",6,61,5.97,7]
[null,null,null,null,null,null,null,null,null,null,"Sep",7,28,7,8]
[null,null,null,null,null,null,null,null,null,null,"Oct",7,80,6.7,10]
[null,null,null,null,null,null,null,null,null,null,"Nov",6,38,5.75,7]
[null,null,null,null,null,null,null,null,null,null,"Dec",6,34,5.61,9]
[null,null,null,null,null,null,null,null,null,null,"Annual",{"$f":"AVERAGE(L22:L33)","v":6.833333333333333},{"$f":"MAX(M22:M33)","v":107},{"$f":"AVERAGE(N22:N33)","v":6.8250000000000002},{"$f":"MAX(O22:O33)","v":15}]
[]
[null,null,null,null,null,null,null,null,null,{"$f":"+A6","v":2023},"mg/Nm3","Monthly 1/2 hourly mean","Monthly 1/2 hourly maximum","Monthly daily mean","Monthly daily maximum"]
[null,null,null,null,null,null,null,null,null,"A3","Jan"]
[null,null,null,null,null,null,null,null,null,null,"Feb"]
[null,null,null,null,null,null,null,null,null,null,"Mar"]
[null,null,null,null,null,null,null,null,null,null,"Apr"]
[null,null,null,null,null,null,null,null,null,null,"May"]
[null,null,null,null,null,null,null,null,null,null,"Jun"]
[null,null,null,null,null,null,null,null,null,null,"Jul"]
[null,null,null,null,null,null,null,null,null,null,"Aug"]
[null,null,null,null,null,null,null,null,null,null,"Sep"]
[null,null,null,null,null,null,null,null,null,null,"Oct"]
[null,null,null,null,null,null,null,null,null,null,"Nov"]
["Comments :",null,null,null,null,null,null,null,null,null,"Dec"]
[null,null,null,null,null,null,null,null,null,null,"Annual",{"$f":"AVERAGE(L37:L48)","v":{"$error":"#DIV/0!"}},{"$f":"MAX(M37:M48)","v":0},{"$f":"AVERAGE(N37:N48)","v":{"$error":"#DIV/0!"}},{"$f":"MAX(O37:O48)","v":0}]
[]
[null,null,null,null,null,null,null,null,null,{"$f":"+A6","v":2023},"mg/Nm3","Monthly 1/2 hourly mean","Monthly 1/2 hourly maximum","Monthly daily mean","Monthly daily maximum"]
[null,null,null,null,null,null,null,null,null,"A4","Jan"]
[null,null,null,null,null,null,null,null,null,null,"Feb"]
[null,null,null,null,null,null,null,null,null,null,"Mar"]
[null,null,null,null,null,null,null,null,null,null,"Apr"]
[null,null,null,null,null,null,null,null,null,null,"May"]
[null,null,null,null,null,null,null,null,null,null,"Jun"]
[null,null,null,null,null,null,null,null,null,null,"Jul"]
[null,null,null,null,null,null,null,null,null,null,"Aug"]
[null,null,null,null,null,null,null,null,null,null,"Sep"]
[null,null,null,null,null,null,null,null,null,null,"Oct"]
[null,null,null,null,null,null,null,null,null,null,"Nov"]
[null,null,null,null,null,null,null,null,null,null,"Dec"]
[null,null,null,null,null,null,null,null,null,null,"Annual",{"$f":"AVERAGE(L52:L63)","v":{"$error":"#DIV/0!"}},{"$f":"MAX(M52:M63)","v":0},{"$f":"AVERAGE(N52:N63)","v":{"$error":"#DIV/0!"}},{"$f":"MAX(O52:O63)","v":0}]
[]
[null,null,null,null,null,null,null,null,null,{"$f":"+A6","v":2023},"mg/Nm3","Monthly 1/2 hourly mean","Monthly 1/2 hourly maximum","Monthly daily mean","Monthly daily maximum"]
[null,null,null,null,null,null,null,null,null,"A5","Jan"]
[null,null,null,null,null,null,null,null,null,null,"Feb"]
[null,null,null,null,null,null,null,null,null,null,"Mar"]
[null,null,null,null,null,null,null,null,null,null,"Apr"]
[null,null,null,null,null,null,null,null,null,null,"May"]
[null,null,null,null,null,null,null,null,null,null,"Jun"]
[null,null,null,null,null,null,null,null,null,null,"Jul"]
[null,null,null,null,null,null,null,null,null,null,"Aug"]
[null,null,null,null,null,null,null,null,null,null,"Sep"]
[null,null,null,null,null,null,null,null,null,null,"Oct"]
[null,null,null,null,null,null,null,null,null,null,"Nov"]
[null,null,null,null,null,null,null,null,null,null,"Dec"]
[null,null,null,null,null,null,null,null,null,null,"Annual",{"$f":"AVERAGE(L67:L78)","v":{"$error":"#DIV/0!"}},{"$f":"MAX(M67:M78)","v":0},{"$f":"AVERAGE(N67:N78)","v":{"$error":"#DIV/0!"}},{"$f":"MAX(O67:O78)","v":0}]

{"sheet":"SO2","index":16,"n_rows":79,"n_cols":17,"rows_kept":79,"cut":false,"hidden":false,"merged":[[3,16,7,18],[9,16,11,18],[12,16,15,18],[66,9,78,9],[4,1,4,3],[4,4,4,6],[4,9,4,14],[6,9,18,9],[21,9,33,9],[36,9,48,9],[47,0,47,6],[48,0,51,6],[51,9,63,9],[18,4,18,6]]}
[{"$f":"+'Cover Page'!$B$29","v":"Annual Performance Report 2023"},null,null,null,{"$f":"+'Cover Page'!$B$33","v":"Stoke Energy from Waste "}]
[]
["Monitoring of Sulphur dioxide emissions",null,null,"Whole Installation",null,null,"See  Notes in Cell Q3",null,null,{"$f":"+A3","v":"Monitoring of Sulphur dioxide emissions"},null,null,null,"Per Combustion Line",null,null,"Notes:"]
[null,null,null,null,null,null,null,null,null,null,null,null,null,null,null,null,"User to add logic to complete Whole installation, Table A5:G18. From the data in Per Combustion Line, Table J6:O79, subject to No. of lines installed"]
["mg/Nm3","1/2 Hourly Reference Periods",null,null,"Daily Reference Periods",null,null,null,null,"Boiler 1"]
[{"$f":"+'Cover Page'!C39","v":2023},"1/2 hourly SO2 ELV","Monthly 1/2 hourly mean","Highest 1/2 hourly maximum","Daily SO2 ELV*","Monthly daily mean","Highest daily maximum",null,null,{"$f":"+A6","v":2023},"mg/Nm3","Monthly 1/2 hourly mean","Monthly 1/2 hourly maximum","Monthly daily mean","Monthly daily maximum"]
["Jan",200,{"$f":"AVERAGE(L7,L22)","v":27},{"$f":"MAX(M7,M22)","v":79},50,{"$f":"AVERAGE(N7,N22)","v":27.15},{"$f":"MAX(O7,O22)","v":39},null,null,"A1","Jan",31,79,31.13,39]
["Feb",200,{"$f":"AVERAGE(L8,L23)","v":28},{"$f":"MAX(M8,M23)","v":138},50,{"$f":"AVERAGE(N8,N23)","v":27.965},{"$f":"MAX(O8,O23)","v":38},null,null,null,"Feb",32,138,32.11,38]
["Mar",200,26,84,50,25.92,34,null,null,null,"Mar",28,84,28.18,34,null,"Whole Installation table A5:G18:"]
["Apr",200,24.5,141,50,24.454999999999998,36,null,null,null,"Apr",28,139,27.77,36,null,"Mean: for 1/2 hourly and daily periods calculate mean of values across all operational combustion lines for the month"]
["May",200,27,194,50,26.91,41,null,null,null,"May",27,194,27.04,32]
["Jun",200,26,164,50,26.204999999999998,36,null,null,null,"Jun",28,164,28.13,36]
["Jul",200,22,141,50,22.255000000000003,36,null,null,null,"Jul",24,109,24.16,36,null,"Maximum: for 1/2 hourly and daily periods use the highest value across all operational combustion lines for the month"]
["Aug",200,22,110,50,22.18,27,null,null,null,"Aug",23,92,23.13,27]
["Sep",200,25.5,135,50,25.61,75,null,null,null,"Sep",33,135,32.69,75]
["Oct",200,23,160,50,23.43,40,null,null,null,"Oct",29,160,29.39,40]
["Nov",200,26,139,50,26.31,38,null,null,null,"Nov",30,139,30.33,38]
["Dec",200,23.5,188,50,23.509999999999998,39,null,null,null,"Dec",24,131,24.2,38]
[null,null,null,null,"* ELV reduced to 40 mg/Nm3 on 3 December 2023",null,null,null,null,null,"Annual",{"$f":"AVERAGE(L7:L18)","v":28.083333333333332},{"$f":"MAX(M7:M18)","v":194},{"$f":"AVERAGE(N7:N18)","v":28.188333333333329},{"$f":"MAX(O7:O18)","v":75}]
[null,null,null,null,null,null,null,null,null,null,null,null,"Boiler 2"]
[null,null,null,null,null,null,null,null,null,{"$f":"+A6","v":2023},"mg/Nm3","Monthly 1/2 hourly mean","Monthly 1/2 hourly maximum","Monthly daily mean","Monthly daily maximum"]
[null,null,null,null,null,null,null,null,null,"A2","Jan",23,74,23.17,29]
[null,null,null,null,null,null,null,null,null,null,"Feb",24,74,23.82,27]
[null,null,null,null,null,null,null,null,null,null,"Mar",24,79,23.66,31]
[null,null,null,null,null,null,null,null,null,null,"Apr",21,141,21.14,29]
[null,null,null,null,null,null,null,null,null,null,"May",27,131,26.78,41]
[null,null,null,null,null,null,null,null,null,null,"Jun",24,159,24.28,33]
[null,null,null,null,null,null,null,null,null,null,"Jul",20,141,20.350000000000001,36]
[null,null,null,null,null,null,null,null,null,null,"Aug",21,110,21.23,26]
[null,null,null,null,null,null,null,null,null,null,"Sep",18,90,18.53,27]
[null,null,null,null,null,null,null,null,null,null,"Oct",17,135,17.47,24]
[null,null,null,null,null,null,null,null,null,null,"Nov",22,109,22.29,33]
[null,null,null,null,null,null,null,null,null,null,"Dec",23,188,22.82,39]
[null,null,null,null,null,null,null,null,null,null,"Annual",{"$f":"AVERAGE(L22:L33)","v":22},{"$f":"MAX(M22:M33)","v":188},{"$f":"AVERAGE(N22:N33)","v":22.128333333333334},{"$f":"MAX(O22:O33)","v":41}]
[]
[null,null,null,null,null,null,null,null,null,{"$f":"+A6","v":2023},"mg/Nm3","Monthly 1/2 hourly mean","Monthly 1/2 hourly maximum","Monthly daily mean","Monthly daily maximum"]
[null,null,null,null,null,null,null,null,null,"A3","Jan"]
[null,null,null,null,null,null,null,null,null,null,"Feb"]
[null,null,null,null,null,null,null,null,null,null,"Mar"]
[null,null,null,null,null,null,null,null,null,null,"Apr"]
[null,null,null,null,null,null,null,null,null,null,"May"]
[null,null,null,null,null,null,null,null,null,null,"Jun"]
[null,null,null,null,null,null,null,null,null,null,"Jul"]
[null,null,null,null,null,null,null,null,null,null,"Aug"]
[null,null,null,null,null,null,null,null,null,null,"Sep"]
[null,null,null,null,null,null,null,null,null,null,"Oct"]
[null,null,null,null,null,null,null,null,null,null,"Nov"]
["Comments :",null,null,null,null,null,null,null,null,null,"Dec"]
[null,null,null,null,null,null,null,null,null,null,"Annual",{"$f":"AVERAGE(L37:L48)","v":{"$error":"#DIV/0!"}},{"$f":"MAX(M37:M48)","v":0},{"$f":"AVERAGE(N37:N48)","v":{"$error":"#DIV/0!"}},{"$f":"MAX(O37:O48)","v":0}]
[]
[null,null,null,null,null,null,null,null,null,{"$f":"+A6","v":2023},"mg/Nm3","Monthly 1/2 hourly mean","Monthly 1/2 hourly maximum","Monthly daily mean","Monthly daily maximum"]
[null,null,null,null,null,null,null,null,null,"A4","Jan"]
[null,null,null,null,null,null,null,null,null,null,"Feb"]
[null,null,null,null,null,null,null,null,null,null,"Mar"]
[null,null,null,null,null,null,null,null,null,null,"Apr"]
[null,null,null,null,null,null,null,null,null,null,"May"]
[null,null,null,null,null,null,null,null,null,null,"Jun"]
[null,null,null,null,null,null,null,null,null,null,"Jul"]
[null,null,null,null,null,null,null,null,null,null,"Aug"]
[null,null,null,null,null,null,null,null,null,null,"Sep"]
[null,null,null,null,null,null,null,null,null,null,"Oct"]
[null,null,null,null,null,null,null,null,null,null,"Nov"]
[null,null,null,null,null,null,null,null,null,null,"Dec"]
[null,null,null,null,null,null,null,null,null,null,"Annual",{"$f":"AVERAGE(L52:L63)","v":{"$error":"#DIV/0!"}},{"$f":"MAX(M52:M63)","v":0},{"$f":"AVERAGE(N52:N63)","v":{"$error":"#DIV/0!"}},{"$f":"MAX(O52:O63)","v":0}]
[]
[null,null,null,null,null,null,null,null,null,{"$f":"+A6","v":2023},"mg/Nm3","Monthly 1/2 hourly mean","Monthly 1/2 hourly maximum","Monthly daily mean","Monthly daily maximum"]
[null,null,null,null,null,null,null,null,null,"A5","Jan"]
[null,null,null,null,null,null,null,null,null,null,"Feb"]
[null,null,null,null,null,null,null,null,null,null,"Mar"]
[null,null,null,null,null,null,null,null,null,null,"Apr"]
[null,null,null,null,null,null,null,null,null,null,"May"]
[null,null,null,null,null,null,null,null,null,null,"Jun"]
[null,null,null,null,null,null,null,null,null,null,"Jul"]
[null,null,null,null,null,null,null,null,null,null,"Aug"]
[null,null,null,null,null,null,null,null,null,null,"Sep"]
[null,null,null,null,null,null,null,null,null,null,"Oct"]
[null,null,null,null,null,null,null,null,null,null,"Nov"]
[null,null,null,null,null,null,null,null,null,null,"Dec"]
[null,null,null,null,null,null,null,null,null,null,"Annual",{"$f":"AVERAGE(L67:L78)","v":{"$error":"#DIV/0!"}},{"$f":"MAX(M67:M78)","v":0},{"$f":"AVERAGE(N67:N78)","v":{"$error":"#DIV/0!"}},{"$f":"MAX(O67:O78)","v":0}]

{"sheet":"NOx","index":17,"n_rows":79,"n_cols":17,"rows_kept":79,"cut":false,"hidden":false,"merged":[[3,16,7,18],[9,16,11,18],[12,16,15,18],[66,9,78,9],[4,1,4,3],[4,4,4,6],[4,9,4,14],[6,9,18,9],[21,9,33,9],[36,9,48,9],[47,0,47,6],[48,0,51,6],[51,9,63,9],[18,4,18,6]]}
[{"$f":"+'Cover Page'!$B$29","v":"Annual Performance Report 2023"},null,null,null,{"$f":"+'Cover Page'!$B$33","v":"Stoke Energy from Waste "}]
[]
["Monitoring of Oxides of Nitrogen emissions",null,null,"Whole Installation",null,null,"See  Notes in Cell Q3",null,null,{"$f":"+A3","v":"Monitoring of Oxides of Nitrogen emissions"},null,null,null,"Per Combustion Line",null,null,"Notes:"]
[null,null,null,null,null,null,null,null,null,null,null,null,null,null,null,null,"User to add logic to complete Whole installation, Table A5:G18. From the data in Per Combustion Line, Table J6:O79, subject to No. of lines installed"]
["mg/Nm3","1/2 Hourly Reference Periods",null,null,"Daily Reference Periods"]
[{"$f":"+'Cover Page'!C39","v":2023},"1/2 hourly NOx ELV","Monthly 1/2 hourly mean","Highest 1/2 hourly maximum","Daily NOx ELV*","Monthly daily mean","Highest daily maximum",null,null,{"$f":"+A6","v":2023},"mg/Nm3","Monthly 1/2 hourly mean","Monthly 1/2 hourly maximum","Monthly daily mean","Monthly daily maximum"]
["Jan",400,{"$f":"AVERAGE(L7,L22)","v":168.5},{"$f":"MAX(M7,M22)","v":308},200,{"$f":"AVERAGE(N7,N22)","v":168.42500000000001},{"$f":"MAX(O7,O22)","v":182},null,null,"A1","Jan",178,308,177.71,182]
["Feb",400,{"$f":"AVERAGE(L8,L23)","v":166},{"$f":"MAX(M8,M23)","v":314},200,{"$f":"AVERAGE(N8,N23)","v":165.875},{"$f":"MAX(O8,O23)","v":197},null,null,null,"Feb",178,219,178,179]
["Mar",400,156.5,278,200,156.44999999999999,175,null,null,null,"Mar",163,278,163,171,null,"Whole Installation table A5:G18:"]
["Apr",400,172,279,200,172,182,null,null,null,"Apr",175,254,175,181,null,"Mean: for 1/2 hourly and daily periods calculate mean of values across all operational combustion lines for the month"]
["May",400,161,287,200,161.10000000000002,182,null,null,null,"May",178,259,177.87,182]
["Jun",400,148,288,200,147.495,180,null,null,null,"Jun",158,288,157.47,180]
["Jul",400,128,236,200,127.77000000000001,163,null,null,null,"Jul",134,214,133.77000000000001,163,null,"Maximum: for 1/2 hourly and daily periods use the highest value across all operational combustion lines for the month"]
["Aug",400,176.5,283,200,176.55500000000001,185,null,null,null,"Aug",178,241,178.17,185]
["Sep",400,174,350,200,173.66500000000002,185,null,null,null,"Sep",173,228,172.5,178]
["Oct",400,163,265,200,162.85,172,null,null,null,"Oct",162,233,162.03,164]
["Nov",400,164,288,200,163.61000000000001,169,null,null,null,"Nov",162,288,161.4,164]
["Dec",400,165.5,281,200,165.32499999999999,178,null,null,null,"Dec",167,281,166.97,178]
[null,null,null,null,"* ELV reduced to 180 mg/Nm3 on 3 December 2023",null,null,null,null,null,"Annual",{"$f":"AVERAGE(L7:L18)","v":167.16666666666666},{"$f":"MAX(M7:M18)","v":308},{"$f":"AVERAGE(N7:N18)","v":166.99083333333334},{"$f":"MAX(O7:O18)","v":185}]
[]
[null,null,null,null,null,null,null,null,null,{"$f":"+A6","v":2023},"mg/Nm3","Monthly 1/2 hourly mean","Monthly 1/2 hourly maximum","Monthly daily mean","Monthly daily maximum"]
[null,null,null,null,null,null,null,null,null,"A2","Jan",159,294,159.13999999999999,170]
[null,null,null,null,null,null,null,null,null,null,"Feb",154,314,153.75,197]
[null,null,null,null,null,null,null,null,null,null,"Mar",150,252,149.9,175]
[null,null,null,null,null,null,null,null,null,null,"Apr",169,279,169,182]
[null,null,null,null,null,null,null,null,null,null,"May",144,287,144.33000000000001,168]
[null,null,null,null,null,null,null,null,null,null,"Jun",138,284,137.52000000000001,173]
[null,null,null,null,null,null,null,null,null,null,"Jul",122,236,121.77,148]
[null,null,null,null,null,null,null,null,null,null,"Aug",175,283,174.94,185]
[null,null,null,null,null,null,null,null,null,null,"Sep",175,350,174.83,185]
[null,null,null,null,null,null,null,null,null,null,"Oct",164,265,163.66999999999999,172]
[null,null,null,null,null,null,null,null,null,null,"Nov",166,259,165.82,169]
[null,null,null,null,null,null,null,null,null,null,"Dec",164,262,163.68,168]
[null,null,null,null,null,null,null,null,null,null,"Annual",{"$f":"AVERAGE(L22:L33)","v":156.66666666666666},{"$f":"MAX(M22:M33)","v":350},{"$f":"AVERAGE(N22:N33)","v":156.52916666666667},{"$f":"MAX(O22:O33)","v":197}]
[]
[null,null,null,null,null,null,null,null,null,{"$f":"+A6","v":2023},"mg/Nm3","Monthly 1/2 hourly mean","Monthly 1/2 hourly maximum","Monthly daily mean","Monthly daily maximum"]
[null,null,null,null,null,null,null,null,null,"A3","Jan"]
[null,null,null,null,null,null,null,null,null,null,"Feb"]
[null,null,null,null,null,null,null,null,null,null,"Mar"]
[null,null,null,null,null,null,null,null,null,null,"Apr"]
[null,null,null,null,null,null,null,null,null,null,"May"]
[null,null,null,null,null,null,null,null,null,null,"Jun"]
[null,null,null,null,null,null,null,null,null,null,"Jul"]
[null,null,null,null,null,null,null,null,null,null,"Aug"]
[null,null,null,null,null,null,null,null,null,null,"Sep"]
[null,null,null,null,null,null,null,null,null,null,"Oct"]
[null,null,null,null,null,null,null,null,null,null,"Nov"]
["Comments :",null,null,null,null,null,null,null,null,null,"Dec"]
[null,null,null,null,null,null,null,null,null,null,"Annual",{"$f":"AVERAGE(L37:L48)","v":{"$error":"#DIV/0!"}},{"$f":"MAX(M37:M48)","v":0},{"$f":"AVERAGE(N37:N48)","v":{"$error":"#DIV/0!"}},{"$f":"MAX(O37:O48)","v":0}]
[]
[null,null,null,null,null,null,null,null,null,{"$f":"+A6","v":2023},"mg/Nm3","Monthly 1/2 hourly mean","Monthly 1/2 hourly maximum","Monthly daily mean","Monthly daily maximum"]
[null,null,null,null,null,null,null,null,null,"A4","Jan"]
[null,null,null,null,null,null,null,null,null,null,"Feb"]
[null,null,null,null,null,null,null,null,null,null,"Mar"]
[null,null,null,null,null,null,null,null,null,null,"Apr"]
[null,null,null,null,null,null,null,null,null,null,"May"]
[null,null,null,null,null,null,null,null,null,null,"Jun"]
[null,null,null,null,null,null,null,null,null,null,"Jul"]
[null,null,null,null,null,null,null,null,null,null,"Aug"]
[null,null,null,null,null,null,null,null,null,null,"Sep"]
[null,null,null,null,null,null,null,null,null,null,"Oct"]
[null,null,null,null,null,null,null,null,null,null,"Nov"]
[null,null,null,null,null,null,null,null,null,null,"Dec"]
[null,null,null,null,null,null,null,null,null,null,"Annual",{"$f":"AVERAGE(L52:L63)","v":{"$error":"#DIV/0!"}},{"$f":"MAX(M52:M63)","v":0},{"$f":"AVERAGE(N52:N63)","v":{"$error":"#DIV/0!"}},{"$f":"MAX(O52:O63)","v":0}]
[]
[null,null,null,null,null,null,null,null,null,{"$f":"+A6","v":2023},"mg/Nm3","Monthly 1/2 hourly mean","Monthly 1/2 hourly maximum","Monthly daily mean","Monthly daily maximum"]
[null,null,null,null,null,null,null,null,null,"A5","Jan"]
[null,null,null,null,null,null,null,null,null,null,"Feb"]
[null,null,null,null,null,null,null,null,null,null,"Mar"]
[null,null,null,null,null,null,null,null,null,null,"Apr"]
[null,null,null,null,null,null,null,null,null,null,"May"]
[null,null,null,null,null,null,null,null,null,null,"Jun"]
[null,null,null,null,null,null,null,null,null,null,"Jul"]
[null,null,null,null,null,null,null,null,null,null,"Aug"]
[null,null,null,null,null,null,null,null,null,null,"Sep"]
[null,null,null,null,null,null,null,null,null,null,"Oct"]
[null,null,null,null,null,null,null,null,null,null,"Nov"]
[null,null,null,null,null,null,null,null,null,null,"Dec"]
[null,null,null,null,null,null,null,null,null,null,"Annual",{"$f":"AVERAGE(L67:L78)","v":{"$error":"#DIV/0!"}},{"$f":"MAX(M67:M78)","v":0},{"$f":"AVERAGE(N67:N78)","v":{"$error":"#DIV/0!"}},{"$f":"MAX(O67:O78)","v":0}]

{"sheet":"TOC","index":18,"n_rows":79,"n_cols":17,"rows_kept":79,"cut":false,"hidden":false,"merged":[[3,16,7,18],[9,16,11,18],[12,16,15,18],[66,9,78,9],[4,1,4,3],[4,4,4,6],[4,9,4,14],[6,9,18,9],[21,9,33,9],[36,9,48,9],[47,0,47,6],[48,0,51,6],[51,9,63,9]]}
[{"$f":"+'Cover Page'!$B$29","v":"Annual Performance Report 2023"},null,null,null,{"$f":"+'Cover Page'!$B$33","v":"Stoke Energy from Waste "}]
[]
["Monitoring of Total organic carbon emissions",null,null,"Whole Installation",null,null,"See  Notes in Cell Q3",null,null,{"$f":"+A3","v":"Monitoring of Total organic carbon emissions"},null,null,null,"Per Combustion Line",null,null,"Notes:"]
[null,null,null,null,null,null,null,null,null,null,null,null,null,null,null,null,"User to add logic to complete Whole installation, Table A5:G18. From the data in Per Combustion Line, Table J6:O79, subject to No. of lines installed"]
["mg/Nm3","1/2 Hourly Reference Periods",null,null,"Daily Reference Periods"]
[{"$f":"+'Cover Page'!C39","v":2023},"1/2 hourly TOC ELV","Monthly 1/2 hourly mean","Highest 1/2 hourly maximum","Daily TOC ELV","Monthly daily mean","Highest daily maximum",null,null,{"$f":"+A6","v":2023},"mg/Nm3","Monthly 1/2 hourly mean","Monthly 1/2 hourly maximum","Monthly daily mean","Monthly daily maximum"]
["Jan",20,{"$f":"AVERAGE(L7,L22)","v":1.4999999999999999E-2},{"$f":"MAX(M7,M22)","v":7},10,{"$f":"AVERAGE(N7,N22)","v":1.6E-2},{"$f":"MAX(O7,O22)","v":1},null,null,"A1","Jan",0.03,7,3.2000000000000001E-2,1]
["Feb",20,{"$f":"AVERAGE(L8,L23)","v":0},{"$f":"MAX(M8,M23)","v":4},10,{"$f":"AVERAGE(N8,N23)","v":0},{"$f":"MAX(O8,O23)","v":0},null,null,null,"Feb",0,3,0,0]
["Mar",20,0,7,10,0,0,null,null,null,"Mar",0,7,0,0,null,"Whole Installation table A5:G18:"]
["Apr",20,0,6,10,0,0,null,null,null,"Apr",0,5,0,0,null,"Mean: for 1/2 hourly and daily periods calculate mean of values across all operational combustion lines for the month"]
["May",20,0.46500000000000002,8,10,0.46500000000000002,1,null,null,null,"May",0.04,8,0.04,1]
["Jun",20,0.26,4,10,0.26,1,null,null,null,"Jun",0,4,0,0]
["Jul",20,0.03,6,10,0.03,1,null,null,null,"Jul",0.06,6,0.06,1,null,"Maximum: for 1/2 hourly and daily periods use the highest value across all operational combustion lines for the month"]
["Aug",20,0,5,10,0,0,null,null,null,"Aug",0,5,0,0]
["Sep",20,0,11,10,0,0,null,null,null,"Sep",0,11,0,0]
["Oct",20,0,15,10,0,0,null,null,null,"Oct",0,15,0,0]
["Nov",20,0,10,10,0,0,null,null,null,"Nov",0,10,0,0]
["Dec",20,{"$f":"AVERAGE(L18,L33)","v":5.5E-2},11,10,5.5E-2,1,null,null,null,"Dec",0,5,0,0]
[null,null,null,null,null,null,null,null,null,null,"Annual",{"$f":"AVERAGE(L7:L18)","v":1.0833333333333334E-2},{"$f":"MAX(M7:M18)","v":15},{"$f":"AVERAGE(N7:N18)","v":1.1000000000000001E-2},{"$f":"MAX(O7:O18)","v":1}]
[]
[null,null,null,null,null,null,null,null,null,{"$f":"+A6","v":2023},"mg/Nm3","Monthly 1/2 hourly mean","Monthly 1/2 hourly maximum","Monthly daily mean","Monthly daily maximum"]
[null,null,null,null,null,null,null,null,null,"A2","Jan",0,2,0,0]
[null,null,null,null,null,null,null,null,null,null,"Feb",0,4,0,0]
[null,null,null,null,null,null,null,null,null,null,"Mar",0,1,0,0]
[null,null,null,null,null,null,null,null,null,null,"Apr",0,6,0,0]
[null,null,null,null,null,null,null,null,null,null,"May",0.89,1,0.89,1]
[null,null,null,null,null,null,null,null,null,null,"Jun",0.52,4,0.52,1]
[null,null,null,null,null,null,null,null,null,null,"Jul",0,2,0,0]
[null,null,null,null,null,null,null,null,null,null,"Aug",0,5,0,0]
[null,null,null,null,null,null,null,null,null,null,"Sep",0,4,0,0]
[null,null,null,null,null,null,null,null,null,null,"Oct",0,9,0,0]
[null,null,null,null,null,null,null,null,null,null,"Nov",0,5,0,0]
[null,null,null,null,null,null,null,null,null,null,"Dec",0.11,11,0.11,1]
[null,null,null,null,null,null,null,null,null,null,"Annual",{"$f":"AVERAGE(L22:L33)","v":0.12666666666666668},{"$f":"MAX(M22:M33)","v":11},{"$f":"AVERAGE(N22:N33)","v":0.12666666666666668},{"$f":"MAX(O22:O33)","v":1}]
[]
[null,null,null,null,null,null,null,null,null,{"$f":"+A6","v":2023},"mg/Nm3","Monthly 1/2 hourly mean","Monthly 1/2 hourly maximum","Monthly daily mean","Monthly daily maximum"]
[null,null,null,null,null,null,null,null,null,"A3","Jan"]
[null,null,null,null,null,null,null,null,null,null,"Feb"]
[null,null,null,null,null,null,null,null,null,null,"Mar"]
[null,null,null,null,null,null,null,null,null,null,"Apr"]
[null,null,null,null,null,null,null,null,null,null,"May"]
[null,null,null,null,null,null,null,null,null,null,"Jun"]
[null,null,null,null,null,null,null,null,null,null,"Jul"]
[null,null,null,null,null,null,null,null,null,null,"Aug"]
[null,null,null,null,null,null,null,null,null,null,"Sep"]
[null,null,null,null,null,null,null,null,null,null,"Oct"]
[null,null,null,null,null,null,null,null,null,null,"Nov"]
["Comments :",null,null,null,null,null,null,null,null,null,"Dec"]
[null,null,null,null,null,null,null,null,null,null,"Annual",{"$f":"AVERAGE(L37:L48)","v":{"$error":"#DIV/0!"}},{"$f":"MAX(M37:M48)","v":0},{"$f":"AVERAGE(N37:N48)","v":{"$error":"#DIV/0!"}},{"$f":"MAX(O37:O48)","v":0}]
[]
[null,null,null,null,null,null,null,null,null,{"$f":"+A6","v":2023},"mg/Nm3","Monthly 1/2 hourly mean","Monthly 1/2 hourly maximum","Monthly daily mean","Monthly daily maximum"]
[null,null,null,null,null,null,null,null,null,"A4","Jan"]
[null,null,null,null,null,null,null,null,null,null,"Feb"]
[null,null,null,null,null,null,null,null,null,null,"Mar"]
[null,null,null,null,null,null,null,null,null,null,"Apr"]
[null,null,null,null,null,null,null,null,null,null,"May"]
[null,null,null,null,null,null,null,null,null,null,"Jun"]
[null,null,null,null,null,null,null,null,null,null,"Jul"]
[null,null,null,null,null,null,null,null,null,null,"Aug"]
[null,null,null,null,null,null,null,null,null,null,"Sep"]
[null,null,null,null,null,null,null,null,null,null,"Oct"]
[null,null,null,null,null,null,null,null,null,null,"Nov"]
[null,null,null,null,null,null,null,null,null,null,"Dec"]
[null,null,null,null,null,null,null,null,null,null,"Annual",{"$f":"AVERAGE(L52:L63)","v":{"$error":"#DIV/0!"}},{"$f":"MAX(M52:M63)","v":0},{"$f":"AVERAGE(N52:N63)","v":{"$error":"#DIV/0!"}},{"$f":"MAX(O52:O63)","v":0}]
[]
[null,null,null,null,null,null,null,null,null,{"$f":"+A6","v":2023},"mg/Nm3","Monthly 1/2 hourly mean","Monthly 1/2 hourly maximum","Monthly daily mean","Monthly daily maximum"]
[null,null,null,null,null,null,null,null,null,"A5","Jan"]
[null,null,null,null,null,null,null,null,null,null,"Feb"]
[null,null,null,null,null,null,null,null,null,null,"Mar"]
[null,null,null,null,null,null,null,null,null,null,"Apr"]
[null,null,null,null,null,null,null,null,null,null,"May"]
[null,null,null,null,null,null,null,null,null,null,"Jun"]
[null,null,null,null,null,null,null,null,null,null,"Jul"]
[null,null,null,null,null,null,null,null,null,null,"Aug"]
[null,null,null,null,null,null,null,null,null,null,"Sep"]
[null,null,null,null,null,null,null,null,null,null,"Oct"]
[null,null,null,null,null,null,null,null,null,null,"Nov"]
[null,null,null,null,null,null,null,null,null,null,"Dec"]
[null,null,null,null,null,null,null,null,null,null,"Annual",{"$f":"AVERAGE(L67:L78)","v":{"$error":"#DIV/0!"}},{"$f":"MAX(M67:M78)","v":0},{"$f":"AVERAGE(N67:N78)","v":{"$error":"#DIV/0!"}},{"$f":"MAX(O67:O78)","v":0}]

{"sheet":"Particulates","index":19,"n_rows":79,"n_cols":17,"rows_kept":79,"cut":false,"hidden":false,"merged":[[3,16,7,18],[9,16,11,18],[12,16,15,18],[66,9,78,9],[4,1,4,3],[4,4,4,6],[4,9,4,14],[6,9,18,9],[21,9,33,9],[36,9,48,9],[47,0,47,6],[48,0,51,6],[51,9,63,9],[18,4,18,6]]}
[{"$f":"+'Cover Page'!$B$29","v":"Annual Performance Report 2023"},null,null,null,{"$f":"+'Cover Page'!$B$33","v":"Stoke Energy from Waste "}]
[]
["Monitoring of Particulate matter emissions",null,null,"Whole Installation",null,null,"See  Notes in Cell Q3",null,null,{"$f":"+A3","v":"Monitoring of Particulate matter emissions"},null,null,null,"Per Combustion Line",null,null,"Notes:"]
[null,null,null,null,null,null,null,null,null,null,null,null,null,null,null,null,"User to add logic to complete Whole installation, Table A5:G18. From the data in Per Combustion Line, Table J6:O79, subject to No. of lines installed"]
["mg/Nm3","1/2 Hourly Reference Periods",null,null,"Daily Reference Periods"]
[{"$f":"+'Cover Page'!C39","v":2023},"1/2 hourly PM ELV","Monthly 1/2 hourly mean","Highest 1/2 hourly maximum","Daily PM ELV*","Monthly daily mean","Highest daily maximum",null,null,{"$f":"+A6","v":2023},"mg/Nm3","Monthly 1/2 hourly mean","Monthly 1/2 hourly maximum","Monthly daily mean","Monthly daily maximum"]
["Jan",30,{"$f":"AVERAGE(L7,L22)","v":1.21},{"$f":"MAX(M7,M22)","v":8},10,{"$f":"AVERAGE(N7,N22)","v":1.21},{"$f":"MAX(O7,O22)","v":4},null,null,"A1","Jan",2.42,8,2.42,4]
["Feb",30,{"$f":"AVERAGE(L8,L23)","v":1},{"$f":"MAX(M8,M23)","v":9},10,{"$f":"AVERAGE(N8,N23)","v":1},{"$f":"MAX(O8,O23)","v":2},null,null,null,"Feb",2,5,2,2]
["Mar",30,1.5,6,10,1.3049999999999999,4,null,null,null,"Mar",3,6,2.61,4,null,"Whole Installation table A5:G18:"]
["Apr",30,1.5,10,10,1.5349999999999999,6,null,null,null,"Apr",3,10,3.07,6,null,"Mean: for 1/2 hourly and daily periods calculate mean of values across all operational combustion lines for the month"]
["May",30,2,9,10,1.845,4,null,null,null,"May",3,7,3.13,4]
["Jun",30,1.5,9,10,1.4650000000000001,5,null,null,null,"Jun",3,9,2.93,5]
["Jul",30,1.5,10,10,1.63,5,null,null,null,"Jul",3,10,2.94,5,null,"Maximum: for 1/2 hourly and daily periods use the highest value across all operational combustion lines for the month"]
["Aug",30,2,8,10,2.02,4,null,null,null,"Aug",2,6,2.33,4]
["Sep",30,1.5,6,10,1.19,4,null,null,null,"Sep",3,6,2.38,4]
["Oct",30,1,4,10,1.0349999999999999,2,null,null,null,"Oct",2,4,2,2]
["Nov",30,1.5,5,10,1.23,2,null,null,null,"Nov",2,5,2,2]
["Dec",30,1.5,11,10,1.5550000000000002,2,null,null,null,"Dec",2,11,2,2]
[null,null,null,null,"* ELV reduced to 5 mg/Nm3 on 3 December 2023",null,null,null,null,null,"Annual",{"$f":"AVERAGE(L7:L18)","v":2.5350000000000001},{"$f":"MAX(M7:M18)","v":11},{"$f":"AVERAGE(N7:N18)","v":2.4841666666666664},{"$f":"MAX(O7:O18)","v":6}]
[]
[null,null,null,null,null,null,null,null,null,{"$f":"+A6","v":2023},"mg/Nm3","Monthly 1/2 hourly mean","Monthly 1/2 hourly maximum","Monthly daily mean","Monthly daily maximum"]
[null,null,null,null,null,null,null,null,null,"A2","Jan",0,1,0,0]
[null,null,null,null,null,null,null,null,null,null,"Feb",0,9,0,0]
[null,null,null,null,null,null,null,null,null,null,"Mar",0,1,0,0]
[null,null,null,null,null,null,null,null,null,null,"Apr",0,0,0,0]
[null,null,null,null,null,null,null,null,null,null,"May",1,9,0.56000000000000005,4]
[null,null,null,null,null,null,null,null,null,null,"Jun",0,3,0,0]
[null,null,null,null,null,null,null,null,null,null,"Jul",0,1,0.32,1]
[null,null,null,null,null,null,null,null,null,null,"Aug",2,8,1.71,3]
[null,null,null,null,null,null,null,null,null,null,"Sep",0,1,0,0]
[null,null,null,null,null,null,null,null,null,null,"Oct",0,2,7.0000000000000007E-2,1]
[null,null,null,null,null,null,null,null,null,null,"Nov",1,4,0.46,1]
[null,null,null,null,null,null,null,null,null,null,"Dec",1,5,1.1100000000000001,2]
[null,null,null,null,null,null,null,null,null,null,"Annual",{"$f":"AVERAGE(L22:L33)","v":0.41666666666666669},{"$f":"MAX(M22:M33)","v":9},{"$f":"AVERAGE(N22:N33)","v":0.35249999999999998},{"$f":"MAX(O22:O33)","v":4}]
[]
[null,null,null,null,null,null,null,null,null,{"$f":"+A6","v":2023},"mg/Nm3","Monthly 1/2 hourly mean","Monthly 1/2 hourly maximum","Monthly daily mean","Monthly daily maximum"]
[null,null,null,null,null,null,null,null,null,"A3","Jan"]
[null,null,null,null,null,null,null,null,null,null,"Feb"]
[null,null,null,null,null,null,null,null,null,null,"Mar"]
[null,null,null,null,null,null,null,null,null,null,"Apr"]
[null,null,null,null,null,null,null,null,null,null,"May"]
[null,null,null,null,null,null,null,null,null,null,"Jun"]
[null,null,null,null,null,null,null,null,null,null,"Jul"]
[null,null,null,null,null,null,null,null,null,null,"Aug"]
[null,null,null,null,null,null,null,null,null,null,"Sep"]
[null,null,null,null,null,null,null,null,null,null,"Oct"]
[null,null,null,null,null,null,null,null,null,null,"Nov"]
["Comments :",null,null,null,null,null,null,null,null,null,"Dec"]
[null,null,null,null,null,null,null,null,null,null,"Annual",{"$f":"AVERAGE(L37:L48)","v":{"$error":"#DIV/0!"}},{"$f":"MAX(M37:M48)","v":0},{"$f":"AVERAGE(N37:N48)","v":{"$error":"#DIV/0!"}},{"$f":"MAX(O37:O48)","v":0}]
[]
[null,null,null,null,null,null,null,null,null,{"$f":"+A6","v":2023},"mg/Nm3","Monthly 1/2 hourly mean","Monthly 1/2 hourly maximum","Monthly daily mean","Monthly daily maximum"]
[null,null,null,null,null,null,null,null,null,"A4","Jan"]
[null,null,null,null,null,null,null,null,null,null,"Feb"]
[null,null,null,null,null,null,null,null,null,null,"Mar"]
[null,null,null,null,null,null,null,null,null,null,"Apr"]
[null,null,null,null,null,null,null,null,null,null,"May"]
[null,null,null,null,null,null,null,null,null,null,"Jun"]
[null,null,null,null,null,null,null,null,null,null,"Jul"]
[null,null,null,null,null,null,null,null,null,null,"Aug"]
[null,null,null,null,null,null,null,null,null,null,"Sep"]
[null,null,null,null,null,null,null,null,null,null,"Oct"]
[null,null,null,null,null,null,null,null,null,null,"Nov"]
[null,null,null,null,null,null,null,null,null,null,"Dec"]
[null,null,null,null,null,null,null,null,null,null,"Annual",{"$f":"AVERAGE(L52:L63)","v":{"$error":"#DIV/0!"}},{"$f":"MAX(M52:M63)","v":0},{"$f":"AVERAGE(N52:N63)","v":{"$error":"#DIV/0!"}},{"$f":"MAX(O52:O63)","v":0}]
[]
[null,null,null,null,null,null,null,null,null,{"$f":"+A6","v":2023},"mg/Nm3","Monthly 1/2 hourly mean","Monthly 1/2 hourly maximum","Monthly daily mean","Monthly daily maximum"]
[null,null,null,null,null,null,null,null,null,"A5","Jan"]
[null,null,null,null,null,null,null,null,null,null,"Feb"]
[null,null,null,null,null,null,null,null,null,null,"Mar"]
[null,null,null,null,null,null,null,null,null,null,"Apr"]
[null,null,null,null,null,null,null,null,null,null,"May"]
[null,null,null,null,null,null,null,null,null,null,"Jun"]
[null,null,null,null,null,null,null,null,null,null,"Jul"]
[null,null,null,null,null,null,null,null,null,null,"Aug"]
[null,null,null,null,null,null,null,null,null,null,"Sep"]
[null,null,null,null,null,null,null,null,null,null,"Oct"]
[null,null,null,null,null,null,null,null,null,null,"Nov"]
[null,null,null,null,null,null,null,null,null,null,"Dec"]
[null,null,null,null,null,null,null,null,null,null,"Annual",{"$f":"AVERAGE(L67:L78)","v":{"$error":"#DIV/0!"}},{"$f":"MAX(M67:M78)","v":0},{"$f":"AVERAGE(N67:N78)","v":{"$error":"#DIV/0!"}},{"$f":"MAX(O67:O78)","v":0}]

{"sheet":"CO 0.5 hourly","index":20,"n_rows":82,"n_cols":17,"rows_kept":82,"cut":false,"hidden":false,"merged":[[4,0,5,6],[6,16,10,18],[12,16,14,18],[15,16,18,18],[69,9,81,9],[7,1,7,3],[7,4,7,6],[7,9,7,14],[9,9,21,9],[24,9,36,9],[39,9,51,9],[50,0,50,6],[51,0,54,6],[54,9,66,9]]}
[{"$f":"+'Cover Page'!$B$29","v":"Annual Performance Report 2023"},null,null,null,{"$f":"+'Cover Page'!$B$33","v":"Stoke Energy from Waste "}]
[]
["Monitoring of Carbon Monoxide (half hourly)",null,null,"Whole Installation",null,null,"See  Notes in Cell Q3",null,null,{"$f":"+A3","v":"Monitoring of Carbon Monoxide (half hourly)"},null,null,null,"Per Combustion Line",null,null,"Notes:"]
[]
["Please complete this tab for your plant if you have 1/2 hourly CO ELVs; otherwise, leave it blank and complete the CO 95% 10 min tab"]
[]
[null,null,null,null,null,null,null,null,null,null,null,null,null,null,null,null,"User to add logic to complete Whole installation, Table A5:G18. From the data in Per Combustion Line, Table J6:O79, subject to No. of lines installed"]
["mg/Nm3","1/2 Hourly Reference Periods",null,null,"Daily Reference Periods"]
[{"$f":"+'Cover Page'!C39","v":2023},"1/2 hourly CO ELV","Monthly 1/2 hourly mean","Highest 1/2 hourly maximum","Daily CO ELV","Monthly daily mean","Highest daily maximum",null,null,{"$f":"+A9","v":2023},"mg/Nm3","Monthly 1/2 hourly mean","Monthly 1/2 hourly maximum","Monthly daily mean","Monthly daily maximum"]
["Jan",100,null,null,50,null,null,null,null,"A1","Jan"]
["Feb",{"$f":"+B10","v":100},null,null,{"$f":"+E10","v":50},null,null,null,null,null,"Feb"]
["Mar",{"$f":"+B11","v":100},null,null,{"$f":"+E11","v":50},null,null,null,null,null,"Mar",null,null,null,null,null,"Whole Installation table A5:G18:"]
["Apr",100,null,null,50,null,null,null,null,null,"Apr",null,null,null,null,null,"Mean: for 1/2 hourly and daily periods calculate mean of values across all operational combustion lines for the month"]
["May",100,null,null,50,null,null,null,null,null,"May"]
["Jun",100,null,null,50,null,null,null,null,null,"Jun"]
["Jul",100,null,null,50,null,null,null,null,null,"Jul",null,null,null,null,null,"Maximum: for 1/2 hourly and daily periods use the highest value across all operational combustion lines for the month"]
["Aug",100,null,null,50,null,null,null,null,null,"Aug"]
["Sep",100,null,null,50,null,null,null,null,null,"Sep"]
["Oct",100,null,null,50,null,null,null,null,null,"Oct"]
["Nov",100,null,null,50,null,null,null,null,null,"Nov"]
["Dec",100,null,null,50,null,null,null,null,null,"Dec"]
[null,null,null,null,null,null,null,null,null,null,"Annual",{"$f":"AVERAGE(L10:L21)","v":{"$error":"#DIV/0!"}},{"$f":"MAX(M10:M21)","v":0},{"$f":"AVERAGE(N10:N21)","v":{"$error":"#DIV/0!"}},{"$f":"MAX(O10:O21)","v":0}]
[]
[null,null,null,null,null,null,null,null,null,{"$f":"+A9","v":2023},"mg/Nm3","Monthly 1/2 hourly mean","Monthly 1/2 hourly maximum","Monthly daily mean","Monthly daily maximum"]
[null,null,null,null,null,null,null,null,null,"A2","Jan"]
[null,null,null,null,null,null,null,null,null,null,"Feb"]
[null,null,null,null,null,null,null,null,null,null,"Mar"]
[null,null,null,null,null,null,null,null,null,null,"Apr"]
[null,null,null,null,null,null,null,null,null,null,"May"]
[null,null,null,null,null,null,null,null,null,null,"Jun"]
[null,null,null,null,null,null,null,null,null,null,"Jul"]
[null,null,null,null,null,null,null,null,null,null,"Aug"]
[null,null,null,null,null,null,null,null,null,null,"Sep"]
[null,null,null,null,null,null,null,null,null,null,"Oct"]
[null,null,null,null,null,null,null,null,null,null,"Nov"]
[null,null,null,null,null,null,null,null,null,null,"Dec"]
[null,null,null,null,null,null,null,null,null,null,"Annual",{"$f":"AVERAGE(L25:L36)","v":{"$error":"#DIV/0!"}},{"$f":"MAX(M25:M36)","v":0},{"$f":"AVERAGE(N25:N36)","v":{"$error":"#DIV/0!"}},{"$f":"MAX(O25:O36)","v":0}]
[]
[null,null,null,null,null,null,null,null,null,{"$f":"+A9","v":2023},"mg/Nm3","Monthly 1/2 hourly mean","Monthly 1/2 hourly maximum","Monthly daily mean","Monthly daily maximum"]
[null,null,null,null,null,null,null,null,null,"A3","Jan"]
[null,null,null,null,null,null,null,null,null,null,"Feb"]
[null,null,null,null,null,null,null,null,null,null,"Mar"]
[null,null,null,null,null,null,null,null,null,null,"Apr"]
[null,null,null,null,null,null,null,null,null,null,"May"]
[null,null,null,null,null,null,null,null,null,null,"Jun"]
[null,null,null,null,null,null,null,null,null,null,"Jul"]
[null,null,null,null,null,null,null,null,null,null,"Aug"]
[null,null,null,null,null,null,null,null,null,null,"Sep"]
[null,null,null,null,null,null,null,null,null,null,"Oct"]
[null,null,null,null,null,null,null,null,null,null,"Nov"]
["Comments :",null,null,null,null,null,null,null,null,null,"Dec"]
[null,null,null,null,null,null,null,null,null,null,"Annual",{"$f":"AVERAGE(L40:L51)","v":{"$error":"#DIV/0!"}},{"$f":"MAX(M40:M51)","v":0},{"$f":"AVERAGE(N40:N51)","v":{"$error":"#DIV/0!"}},{"$f":"MAX(O40:O51)","v":0}]
[]
[null,null,null,null,null,null,null,null,null,{"$f":"+A9","v":2023},"mg/Nm3","Monthly 1/2 hourly mean","Monthly 1/2 hourly maximum","Monthly daily mean","Monthly daily maximum"]
[null,null,null,null,null,null,null,null,null,"A4","Jan"]
[null,null,null,null,null,null,null,null,null,null,"Feb"]
[null,null,null,null,null,null,null,null,null,null,"Mar"]
[null,null,null,null,null,null,null,null,null,null,"Apr"]
[null,null,null,null,null,null,null,null,null,null,"May"]
[null,null,null,null,null,null,null,null,null,null,"Jun"]
[null,null,null,null,null,null,null,null,null,null,"Jul"]
[null,null,null,null,null,null,null,null,null,null,"Aug"]
[null,null,null,null,null,null,null,null,null,null,"Sep"]
[null,null,null,null,null,null,null,null,null,null,"Oct"]
[null,null,null,null,null,null,null,null,null,null,"Nov"]
[null,null,null,null,null,null,null,null,null,null,"Dec"]
[null,null,null,null,null,null,null,null,null,null,"Annual",{"$f":"AVERAGE(L55:L66)","v":{"$error":"#DIV/0!"}},{"$f":"MAX(M55:M66)","v":0},{"$f":"AVERAGE(N55:N66)","v":{"$error":"#DIV/0!"}},{"$f":"MAX(O55:O66)","v":0}]
[]
[null,null,null,null,null,null,null,null,null,{"$f":"+A9","v":2023},"mg/Nm3","Monthly 1/2 hourly mean","Monthly 1/2 hourly maximum","Monthly daily mean","Monthly daily maximum"]
[null,null,null,null,null,null,null,null,null,"A5","Jan"]
[null,null,null,null,null,null,null,null,null,null,"Feb"]
[null,null,null,null,null,null,null,null,null,null,"Mar"]
[null,null,null,null,null,null,null,null,null,null,"Apr"]
[null,null,null,null,null,null,null,null,null,null,"May"]
[null,null,null,null,null,null,null,null,null,null,"Jun"]
[null,null,null,null,null,null,null,null,null,null,"Jul"]
[null,null,null,null,null,null,null,null,null,null,"Aug"]
[null,null,null,null,null,null,null,null,null,null,"Sep"]
[null,null,null,null,null,null,null,null,null,null,"Oct"]
[null,null,null,null,null,null,null,null,null,null,"Nov"]
[null,null,null,null,null,null,null,null,null,null,"Dec"]
[null,null,null,null,null,null,null,null,null,null,"Annual",{"$f":"AVERAGE(L70:L81)","v":{"$error":"#DIV/0!"}},{"$f":"MAX(M70:M81)","v":0},{"$f":"AVERAGE(N70:N81)","v":{"$error":"#DIV/0!"}},{"$f":"MAX(O70:O81)","v":0}]

{"sheet":"CO 95% 10 min","index":21,"n_rows":82,"n_cols":19,"rows_kept":82,"cut":false,"hidden":false,"merged":[[4,0,5,7],[6,18,10,20],[12,18,14,20],[15,18,18,20],[69,10,81,10],[7,1,7,4],[7,5,7,7],[7,10,7,16],[9,10,21,10],[24,10,36,10],[39,10,51,10],[50,0,50,7],[51,0,54,7],[54,10,66,10]]}
[{"$f":"+'Cover Page'!$B$29","v":"Annual Performance Report 2023"},null,null,null,{"$f":"+'Cover Page'!$B$33","v":"Stoke Energy from Waste "}]
[]
["Monitoring of Carbon Monoxide (10-minute avg)",null,null,null,"Whole Installation",null,null,"See  Notes in Cell S3",null,{"$f":"+A3","v":"Monitoring of Carbon Monoxide (10-minute avg)"},null,null,null,null,"Per Combustion Line",null,"Notes:",null,"Notes:"]
[]
["Please complete this tab for your plant if you have 10-minute average CO ELVs; otherwise, leave it blank and complete the CO 0.5 hourly tab"]
[]
[null,null,null,null,null,null,null,null,null,null,null,null,null,null,null,null,null,null,"User to add logic to complete Whole installation, Table A5:H18. From the data in Per Combustion Line, Table K6:Q79, subject to No. of lines installed"]
["mg/Nm3","10-minute Reference Periods",null,null,null,"Daily Reference Periods"]
[{"$f":"+'Cover Page'!C39","v":2023},"95%ile 10-min avg CO ELV","95%ile 10-min avg maximum","Monthly CO 10-min avg mean","10-min avg maximum","Daily CO ELV","Monthly daily mean","Highest daily maximum",null,null,{"$f":"+A9","v":2023},"mg/Nm3","95%ile 10-min avg maximum","Monthly CO 10-min avg mean","10-min avg maximum","Monthly daily mean","Monthly daily maximum"]
["Jan",150,{"$f":"MAX(M10,M25)","v":43},{"$f":"AVERAGE(N10,N25)","v":7.5},{"$f":"MAX(O10,O25)","v":303},50,{"$f":"AVERAGE(P10,P25)","v":7.165},{"$f":"MAX(Q10,Q25)","v":20},null,null,"A1","Jan",43,13,303,12.81,20]
["Feb",{"$f":"+B10","v":150},{"$f":"MAX(M11,M26)","v":22},{"$f":"AVERAGE(N11,N26)","v":5},{"$f":"MAX(O11,O26)","v":281},{"$f":"+F10","v":50},{"$f":"AVERAGE(P11,P26)","v":4.8949999999999996},{"$f":"MAX(Q11,Q26)","v":12},null,null,null,"Feb",22,9,200,9,12]
["Mar",{"$f":"+B11","v":150},37,6,426,{"$f":"+F11","v":50},5.82,20,null,null,null,"Mar",37,11,278,10.71,20,null,"Whole Installation table A5:H18:"]
["Apr",150,30,5,388,50,4.95,15,null,null,null,"Apr",30,9,279,9.17,15,null,"Mean: for 10-min and daily periods use average of all operational combustion lines."]
["May",150,21,4,276,50,4.1749999999999998,11,null,null,null,"May",21,7,261,7.35,11]
["Jun",150,23,2.5,272,50,2.7949999999999999,10,null,null,null,"Jun",23,5,129,5.07,10]
["Jul",150,42,3.5,117,50,3.5649999999999999,10,null,null,null,"Jul",42,7,117,7,10,null,"Maximum: for 10-min and daily periods use the highest of all operational combustion lines in any month."]
["Aug",150,19,4,159,50,4.0599999999999996,11,null,null,null,"Aug",19,8,159,7.83,11]
["Sep",150,51,6.5,240,50,7.2149999999999999,37,null,null,null,"Sep",51,13,240,14.06,37]
["Oct",150,56,7.5,302,50,7.3599999999999994,20,null,null,null,"Oct",56,13,297,13.19,20]
["Nov",150,42,8.5,529,50,8.2249999999999996,20,null,null,null,"Nov",42,15,529,14.77,20]
["Dec",150,48,5.5,299,50,5.1800000000000006,25,null,null,null,"Dec",48,10,299,9.9,25]
[null,null,null,null,null,null,null,null,null,null,null,"Annual",{"$f":"AVERAGE(M10:M21)","v":36.166666666666664},{"$f":"AVERAGE(N10:N21)","v":10},{"$f":"MAX(O10:O21)","v":529},{"$f":"AVERAGE(P10:P21)","v":10.071666666666667},{"$f":"MAX(Q10:Q21)","v":37}]
[]
[null,null,null,null,null,null,null,null,null,null,{"$f":"+A9","v":2023},"mg/Nm3","95%ile 10-min avg maximum","Monthly CO 10-min avg mean","10-min avg maximum","Monthly daily mean","Monthly daily maximum"]
[null,null,null,null,null,null,null,null,null,null,"A2","Jan",12,2,140,1.52,5]
[null,null,null,null,null,null,null,null,null,null,null,"Feb",6,1,281,0.79,3]
[null,null,null,null,null,null,null,null,null,null,null,"Mar",8,1,426,0.93,4]
[null,null,null,null,null,null,null,null,null,null,null,"Apr",9,1,388,0.73,5]
[null,null,null,null,null,null,null,null,null,null,null,"May",5,1,276,1,3]
[null,null,null,null,null,null,null,null,null,null,null,"Jun",3,0,272,0.52,9]
[null,null,null,null,null,null,null,null,null,null,null,"Jul",12,0,48,0.13,2]
[null,null,null,null,null,null,null,null,null,null,null,"Aug",2,0,64,0.28999999999999998,1]
[null,null,null,null,null,null,null,null,null,null,null,"Sep",3,0,94,0.37,1]
[null,null,null,null,null,null,null,null,null,null,null,"Oct",13,2,302,1.53,5]
[null,null,null,null,null,null,null,null,null,null,null,"Nov",13,2,313,1.68,6]
[null,null,null,null,null,null,null,null,null,null,null,"Dec",31,1,67,0.46,4]
[null,null,null,null,null,null,null,null,null,null,null,"Annual",{"$f":"AVERAGE(M25:M36)","v":9.75},{"$f":"AVERAGE(N25:N36)","v":0.91666666666666663},{"$f":"MAX(O25:O36)","v":426},{"$f":"AVERAGE(P25:P36)","v":0.82916666666666672},{"$f":"MAX(Q25:Q36)","v":9}]
[]
[null,null,null,null,null,null,null,null,null,null,{"$f":"+A9","v":2023},"mg/Nm3","95%ile 10-min avg maximum","Monthly CO 10-min avg mean","10-min avg maximum","Monthly daily mean","Monthly daily maximum"]
[null,null,null,null,null,null,null,null,null,null,"A3","Jan"]
[null,null,null,null,null,null,null,null,null,null,null,"Feb"]
[null,null,null,null,null,null,null,null,null,null,null,"Mar"]
[null,null,null,null,null,null,null,null,null,null,null,"Apr"]
[null,null,null,null,null,null,null,null,null,null,null,"May"]
[null,null,null,null,null,null,null,null,null,null,null,"Jun"]
[null,null,null,null,null,null,null,null,null,null,null,"Jul"]
[null,null,null,null,null,null,null,null,null,null,null,"Aug"]
[null,null,null,null,null,null,null,null,null,null,null,"Sep"]
[null,null,null,null,null,null,null,null,null,null,null,"Oct"]
[null,null,null,null,null,null,null,null,null,null,null,"Nov"]
["Comments :",null,null,null,null,null,null,null,null,null,null,"Dec"]
["Environment Agency explanatory note: The 10-minute average ELV is based on the “95th percentile”. In this case this means that 95% of the 10 minute averages in the relevant 24-hour period (i.e. 137) must be below 150 mg/Nm3, and 5% (i.e. 7) are allowed to be any value above 150 mg/Nm3. Whilst we expect operators to minimise CO emissions at all times, it is perfectly acceptable for the value of the maximum 10-minute average to be above 150 mg/Nm3, provided the 95th percentile ELV has been met for that period. ",null,null,null,null,null,null,null,null,null,null,"Annual",{"$f":"AVERAGE(M40:M51)","v":{"$error":"#DIV/0!"}},null,{"$f":"MAX(O40:O51)","v":0},{"$f":"AVERAGE(P40:P51)","v":{"$error":"#DIV/0!"}},{"$f":"MAX(Q40:Q51)","v":0}]
[]
[null,null,null,null,null,null,null,null,null,null,{"$f":"+A9","v":2023},"mg/Nm3","95%ile 10-min avg maximum","Monthly CO 10-min avg mean","10-min avg maximum","Monthly daily mean","Monthly daily maximum"]
[null,null,null,null,null,null,null,null,null,null,"A4","Jan"]
[null,null,null,null,null,null,null,null,null,null,null,"Feb"]
[null,null,null,null,null,null,null,null,null,null,null,"Mar"]
[null,null,null,null,null,null,null,null,null,null,null,"Apr"]
[null,null,null,null,null,null,null,null,null,null,null,"May"]
[null,null,null,null,null,null,null,null,null,null,null,"Jun"]
[null,null,null,null,null,null,null,null,null,null,null,"Jul"]
[null,null,null,null,null,null,null,null,null,null,null,"Aug"]
[null,null,null,null,null,null,null,null,null,null,null,"Sep"]
[null,null,null,null,null,null,null,null,null,null,null,"Oct"]
[null,null,null,null,null,null,null,null,null,null,null,"Nov"]
[null,null,null,null,null,null,null,null,null,null,null,"Dec"]
[null,null,null,null,null,null,null,null,null,null,null,"Annual",{"$f":"AVERAGE(M55:M66)","v":{"$error":"#DIV/0!"}},null,{"$f":"MAX(O55:O66)","v":0},{"$f":"AVERAGE(P55:P66)","v":{"$error":"#DIV/0!"}},{"$f":"MAX(Q55:Q66)","v":0}]
[]
[null,null,null,null,null,null,null,null,null,null,{"$f":"+A9","v":2023},"mg/Nm3","95%ile 10-min avg maximum","Monthly CO 10-min avg mean","10-min avg maximum","Monthly daily mean","Monthly daily maximum"]
[null,null,null,null,null,null,null,null,null,null,"A5","Jan"]
[null,null,null,null,null,null,null,null,null,null,null,"Feb"]
[null,null,null,null,null,null,null,null,null,null,null,"Mar"]
[null,null,null,null,null,null,null,null,null,null,null,"Apr"]
[null,null,null,null,null,null,null,null,null,null,null,"May"]
[null,null,null,null,null,null,null,null,null,null,null,"Jun"]
[null,null,null,null,null,null,null,null,null,null,null,"Jul"]
[null,null,null,null,null,null,null,null,null,null,null,"Aug"]
[null,null,null,null,null,null,null,null,null,null,null,"Sep"]
[null,null,null,null,null,null,null,null,null,null,null,"Oct"]
[null,null,null,null,null,null,null,null,null,null,null,"Nov"]
[null,null,null,null,null,null,null,null,null,null,null,"Dec"]
[null,null,null,null,null,null,null,null,null,null,null,"Annual",{"$f":"AVERAGE(M70:M81)","v":{"$error":"#DIV/0!"}},null,{"$f":"MAX(O70:O81)","v":0},{"$f":"AVERAGE(P70:P81)","v":{"$error":"#DIV/0!"}},{"$f":"MAX(Q70:Q81)","v":0}]

{"sheet":"NH3","index":22,"n_rows":79,"n_cols":17,"rows_kept":79,"cut":false,"hidden":false,"merged":[[3,16,7,18],[9,16,11,18],[12,16,15,18],[66,9,78,9],[4,1,4,3],[4,4,4,6],[4,9,4,14],[6,9,18,9],[21,9,33,9],[36,9,48,9],[47,0,47,6],[48,0,51,6],[51,9,63,9],[18,4,18,6]]}
[{"$f":"+'Cover Page'!$B$29","v":"Annual Performance Report 2023"},null,null,null,{"$f":"+'Cover Page'!$B$33","v":"Stoke Energy from Waste "}]
[]
["Monitoring of Ammnonia emissions ",null,null,"Whole Installation",null,null,"See  Notes in Cell Q3",null,null,{"$f":"+A3","v":"Monitoring of Ammnonia emissions "},null,null,null,"Per Combustion Line",null,null,"Notes:"]
[null,null,null,null,null,null,null,null,null,null,null,null,null,null,null,null,"User to add logic to complete Whole installation, Table A5:G18. From the data in Per Combustion Line, Table J6:O79, subject to No. of lines installed"]
["mg/Nm3","1/2 Hourly Reference Periods",null,null,"Daily Reference Periods"]
[{"$f":"+'Cover Page'!C39","v":2023},"1/2 hourly NH3 ELV","Monthly 1/2 hourly mean","Highest 1/2 hourly maximum","Daily NH3 ELV*","Monthly daily mean","Highest daily maximum",null,null,{"$f":"+A6","v":2023},"mg/Nm3","Monthly 1/2 hourly mean","Monthly 1/2 hourly maximum","Monthly daily mean","Monthly daily maximum"]
["Jan","None",{"$f":"AVERAGE(L7,L22)","v":4.5},{"$f":"MAX(M7,M22)","v":56},"None",{"$f":"AVERAGE(N7,N22)","v":4.5449999999999999},{"$f":"MAX(O7,O22)","v":9},null,null,"A1","Jan",5,56,5.26,9]
["Feb",{"$f":"+B7","v":"None"},{"$f":"AVERAGE(L8,L23)","v":4},{"$f":"MAX(M8,M23)","v":29},"None",{"$f":"AVERAGE(N8,N23)","v":4.125},{"$f":"MAX(O8,O23)","v":10},null,null,null,"Feb",4,29,4.32,10]
["Mar",{"$f":"+B8","v":"None"},5,35,"None",5.1750000000000007,10,null,null,null,"Mar",7,35,7.11,10,null,"Whole Installation table A5:G18:"]
["Apr","None",3.5,50,"None",3.5150000000000001,12,null,null,null,"Apr",5,41,5.2,12,null,"Mean: for 1/2 hourly and daily periods calculate mean of values across all operational combustion lines for the month"]
["May","None",4,20,"None",3.605,8,null,null,null,"May",4,16,3.65,5]
["Jun","None",4,24,"None",3.8,11,null,null,null,"Jun",6,24,6,11]
["Jul","None",5,27,"None",4.92,14,null,null,null,"Jul",9,27,8.9,14,null,"Maximum: for 1/2 hourly and daily periods use the highest value across all operational combustion lines for the month"]
["Aug","None",3.5,24,"None",3.14,6,null,null,null,"Aug",4,24,3.7,5]
["Sep","None",5.5,54,"None",5.3100000000000005,9,null,null,null,"Sep",6,39,5.69,9]
["Oct","None",10,92,"None",9.6999999999999993,18,null,null,null,"Oct",7,47,6.77,11]
["Nov","None",6,79,"None",5.9649999999999999,18,null,null,null,"Nov",8,49,7.57,12]
["Dec","None",4.125,63,15,4.0250000000000004,16,null,null,null,"Dec",8,63,7.8,16]
[null,null,null,null,"* ELV came into force on 3 December 2023",null,null,null,null,null,"Annual",{"$f":"AVERAGE(L7:L18)","v":6.083333333333333},{"$f":"MAX(M7:M18)","v":63},{"$f":"AVERAGE(N7:N18)","v":5.9974999999999987},{"$f":"MAX(O7:O18)","v":16}]
[]
[null,null,null,null,null,null,null,null,null,{"$f":"+A6","v":2023},"mg/Nm3","Monthly 1/2 hourly mean","Monthly 1/2 hourly maximum","Monthly daily mean","Monthly daily maximum"]
[null,null,null,null,null,null,null,null,null,"A2","Jan",4,19,3.83,7]
[null,null,null,null,null,null,null,null,null,null,"Feb",4,23,3.93,9]
[null,null,null,null,null,null,null,null,null,null,"Mar",3,26,3.24,9]
[null,null,null,null,null,null,null,null,null,null,"Apr",2,50,1.83,5]
[null,null,null,null,null,null,null,null,null,null,"May",4,20,3.56,8]
[null,null,null,null,null,null,null,null,null,null,"Jun",2,20,1.6,5]
[null,null,null,null,null,null,null,null,null,null,"Jul",1,14,0.94,3]
[null,null,null,null,null,null,null,null,null,null,"Aug",3,24,2.58,6]
[null,null,null,null,null,null,null,null,null,null,"Sep",5,54,4.93,9]
[null,null,null,null,null,null,null,null,null,null,"Oct",13,92,12.63,18]
[null,null,null,null,null,null,null,null,null,null,"Nov",4,79,4.3600000000000003,18]
[null,null,null,null,null,null,null,null,null,null,"Dec",0.25,13,0.25,2]
[null,null,null,null,null,null,null,null,null,null,"Annual",{"$f":"AVERAGE(L22:L33)","v":3.7708333333333335},{"$f":"MAX(M22:M33)","v":92},{"$f":"AVERAGE(N22:N33)","v":3.6400000000000006},{"$f":"MAX(O22:O33)","v":18}]
[]
[null,null,null,null,null,null,null,null,null,{"$f":"+A6","v":2023},"mg/Nm3","Monthly 1/2 hourly mean","Monthly 1/2 hourly maximum","Monthly daily mean","Monthly daily maximum"]
[null,null,null,null,null,null,null,null,null,"A3","Jan"]
[null,null,null,null,null,null,null,null,null,null,"Feb"]
[null,null,null,null,null,null,null,null,null,null,"Mar"]
[null,null,null,null,null,null,null,null,null,null,"Apr"]
[null,null,null,null,null,null,null,null,null,null,"May"]
[null,null,null,null,null,null,null,null,null,null,"Jun"]
[null,null,null,null,null,null,null,null,null,null,"Jul"]
[null,null,null,null,null,null,null,null,null,null,"Aug"]
[null,null,null,null,null,null,null,null,null,null,"Sep"]
[null,null,null,null,null,null,null,null,null,null,"Oct"]
[null,null,null,null,null,null,null,null,null,null,"Nov"]
["Comments :",null,null,null,null,null,null,null,null,null,"Dec"]
["An indicated ELV value of zero in the table above means that no ammonia limit is/was set in the permit.  ",null,null,null,null,null,null,null,null,null,"Annual",{"$f":"AVERAGE(L37:L48)","v":{"$error":"#DIV/0!"}},{"$f":"MAX(M37:M48)","v":0},{"$f":"AVERAGE(N37:N48)","v":{"$error":"#DIV/0!"}},{"$f":"MAX(O37:O48)","v":0}]
[]
[null,null,null,null,null,null,null,null,null,{"$f":"+A6","v":2023},"mg/Nm3","Monthly 1/2 hourly mean","Monthly 1/2 hourly maximum","Monthly daily mean","Monthly daily maximum"]
[null,null,null,null,null,null,null,null,null,"A4","Jan"]
[null,null,null,null,null,null,null,null,null,null,"Feb"]
[null,null,null,null,null,null,null,null,null,null,"Mar"]
[null,null,null,null,null,null,null,null,null,null,"Apr"]
[null,null,null,null,null,null,null,null,null,null,"May"]
[null,null,null,null,null,null,null,null,null,null,"Jun"]
[null,null,null,null,null,null,null,null,null,null,"Jul"]
[null,null,null,null,null,null,null,null,null,null,"Aug"]
[null,null,null,null,null,null,null,null,null,null,"Sep"]
[null,null,null,null,null,null,null,null,null,null,"Oct"]
[null,null,null,null,null,null,null,null,null,null,"Nov"]
[null,null,null,null,null,null,null,null,null,null,"Dec"]
[null,null,null,null,null,null,null,null,null,null,"Annual",{"$f":"AVERAGE(L52:L63)","v":{"$error":"#DIV/0!"}},{"$f":"MAX(M52:M63)","v":0},{"$f":"AVERAGE(N52:N63)","v":{"$error":"#DIV/0!"}},{"$f":"MAX(O52:O63)","v":0}]
[]
[null,null,null,null,null,null,null,null,null,{"$f":"+A6","v":2023},"mg/Nm3","Monthly 1/2 hourly mean","Monthly 1/2 hourly maximum","Monthly daily mean","Monthly daily maximum"]
[null,null,null,null,null,null,null,null,null,"A5","Jan"]
[null,null,null,null,null,null,null,null,null,null,"Feb"]
[null,null,null,null,null,null,null,null,null,null,"Mar"]
[null,null,null,null,null,null,null,null,null,null,"Apr"]
[null,null,null,null,null,null,null,null,null,null,"May"]
[null,null,null,null,null,null,null,null,null,null,"Jun"]
[null,null,null,null,null,null,null,null,null,null,"Jul"]
[null,null,null,null,null,null,null,null,null,null,"Aug"]
[null,null,null,null,null,null,null,null,null,null,"Sep"]
[null,null,null,null,null,null,null,null,null,null,"Oct"]
[null,null,null,null,null,null,null,null,null,null,"Nov"]
[null,null,null,null,null,null,null,null,null,null,"Dec"]
[null,null,null,null,null,null,null,null,null,null,"Annual",{"$f":"AVERAGE(L67:L78)","v":{"$error":"#DIV/0!"}},{"$f":"MAX(M67:M78)","v":0},{"$f":"AVERAGE(N67:N78)","v":{"$error":"#DIV/0!"}},{"$f":"MAX(O67:O78)","v":0}]